Workbook

Sheet Total Consolidated
E2: JEFFCO HOUSING CORPORATION
E3: CONSOLIDATED
E4: FY 2017 OPERATING BUDGET
H6: Actual | I6: Actual
C7: Budget | E7: Budget | F7: Budget | I7: YTD
C8: FY 2016 | E8: FY 2017 | F8: FY 2017 | H8: FY 2016 | I8: FY 2016
C9: ANNUAL | E9: ANNUAL | F9: Monthly | H9: 12MO Esitmate | I9: at 9/30/16
A11: OPERATING RECEIPTS-TOTAL
A12: ORCHARD VALLEY | C12: 288750 | E12: 402040 | F12: 33503.33333 | H12: 317473.6533 | I12: 234070.24
A13: RESPITE
A14: UPHAM | C14: 123330 | E14: 132780 | F14: 11065 | H14: 126803.2533 | I14: 84046.81
A15: WEST 40TH | C15: 75230 | E15: 90440 | F15: 7536.666667 | H15: 68248.45333 | I15: 51186.34
A16: WHEAT RIDGE PARK | C16: 163010 | E16: 178730 | F16: 14894.16667 | H16: 165797.68 | I16: 124348.26
A17: HILLTOP | C17: 299610 | E17: 320841 | F17: 26736.75 | H17: 300445.68 | I17: 224490.51
A18: WEST 46TH | C18: 79680 | E18: 73870 | F18: 6155.833333 | H18: 65264.34667 | I18: 48935.76
A19: ARVADA COTTAGES | C19: 251070 | E19: 261490 | F19: 21790.83333 | H19: 253061.88 | I19: 189796.41
A20: ALLISON VILLAGE | C20: 353220 | E20: 365428 | F20: 30452.33333 | H20: 356794.6933 | I20: 264641.68
A21: DISPERSED HOUSING
A23: TOTAL OPERATING RECEIPTS | C23: 1633900 | E23: 1825619 | F23: 152134.9167 | H23: 1653889.64 | I23: 1232273.97
A25: OPERATING EXPENDITURES
A26: ORCHARD VALLEY | C26: 351540 | E26: 35779.16667 | F26: 348696.8 | H26: 0
A27: RESPITE
A28: UPHAM | C28: 140320 | E28: 12224.10779 | F28: 115811.4267 | H28: 0
A29: WEST 40TH | C29: 93400 | E29: 9016.7053 | F29: 87712.05333 | H29: 0
A30: WHEAT RIDGE PARK | C30: 189660 | E30: 15335.83333 | F30: 180805.1733 | H30: 0
A31: HILLTOP | C31: 373010 | E31: 31118.3623 | F31: 366939.64 | H31: 0 | I31: 0
A32: WEST 46TH | C32: 104410 | E32: 8517.5 | F32: 91910.57333 | H32: 0
A33: ARVADA COTTAGES | C33: 331700 | E33: 26188.32444 | F33: 311478.4733 | H33: 0
A34: ALLISON VILLAGE | C34: 429890 | E34: 37124.97512 | F34: 411622.7333 | H34: 0
A35: DISPERSED HOUSING
A37: TOTAL OPERATING EXPENSE | C37: 2013930 | E37: 2089319.699 | F37: 175304.975 | H37: 1914976.873 | I37: 1530503.92
A38: NET INCOME | C38: -380030 | E38: -263700.6994 | F38: -23170.05828 | H38: -261087.2333 | I38: -298229.95
A42: ADMINISTRATIVE EXPENDITURES
A43: ORCHARD VALLEY | C43: 34700 | E43: 6505.833333 | F43: 35333.21333 | H43: 0
A44: RESPITE
A45: UPHAM | C45: 24460 | E45: 2143.305567 | F45: 23495.44 | H45: 0
A46: WEST 40TH | C46: 6440 | E46: 540.8633444 | F46: 5654.16 | H46: 0
A47: WHEAT RIDGE PARK | C47: 23440 | E47: 1986.666667 | F47: 22182.50667 | H47: 0
A48: HILLTOP | C48: 36050 | E48: 2965.8623 | F48: 33977.13333 | H48: 0 | I48: 0
A49: WEST 46TH | C49: 5850 | E49: 475.8333333 | F49: 4743.813333 | H49: 0
A50: ARVADA COTTAGES | C50: 27230 | E50: 2235.833333 | F50: 24731.25333 | H50: 0
A51: ALLISON VILLAGE | C51: 61270 | E51: 5090.833333 | F51: 59317.30667 | H51: 0
A52: DISPERSED HOUSING
A54: TOTAL ADMINISTRATIVE | C54: 219440 | E54: 263340.3745 | F54: 21945.03121 | H54: 209434.8267 | I54: 159882.82
A56: OPERATING EXPENDITURES
A57: ORCHARD VALLEY | C57: 44730 | E57: 3702.5 | F57: 42477.69333 | H57: 0
A58: RESPITE
A59: UPHAM | C59: 15020 | E59: 1474.166667 | F59: 18420.64 | H59: 0
A60: WEST 40TH | C60: 8070 | E60: 595 | F60: 6778.893333 | H60: 0
A61: WHEAT RIDGE PARK | C61: 16010 | E61: 1263.333333 | F61: 14386.62667 | H61: 0
A62: HILLTOP | C62: 17180 | E62: 1439.166667 | F62: 16296.46667 | H62: 0 | I62: 0
A63: WEST 46TH | C63: 4520 | E63: 502.5 | F63: 5646.146667 | H63: 0
A64: ARVADA COTTAGES | C64: 17530 | E64: 1899.991111 | F64: 21081.15333 | H64: 0
A65: ALLISON VILLAGE | C65: 40770 | E65: 3557.5147 | F65: 42324.62667 | H65: 0
A66: DISPERSED HOUSING
A68: TOTAL OPERATING | C68: 163830 | E68: 173210.0697 | F68: 14434.17248 | H68: 167412.2467 | I68: 126414.39
A71: MAINTENANCE EXPENDITURES
A72: ORCHARD VALLEY | C72: 65830 | E72: 6471.666667 | F72: 71375.34667 | H72: 0
A73: RESPITE
A74: UPHAM | C74: 47740 | E74: 4264.968889 | F74: 26234.28 | H74: 0
A75: WEST 40TH | C75: 33450 | E75: 3835.841956 | F75: 29072.96 | H75: 0
A76: WHEAT RIDGE PARK | C76: 49660 | E76: 5532.5 | F76: 44444.58667 | H76: 0
A77: HILLTOP | C77: 75410 | E77: 5644.166667 | F77: 90172.78667 | H77: 0 | I77: 0
A78: WEST 46TH | C78: 28810 | E78: 2146.666667 | F78: 17593.74667 | H78: 0
A79: ARVADA COTTAGES | C79: 50180 | E79: 4031.666667 | F79: 57945.42667 | H79: 0
A80: ALLISON VILLAGE | C80: 86450 | E80: 8601.666667 | F80: 72313.34667 | H80: 0
A81: DISPERSED HOUSING
A83: TOTAL MAINTENANCE | C83: 437530 | E83: 472009.7301 | F83: 40529.14418 | H83: 409152.48 | I83: 306864.36
A85: GENERAL
A86: ORCHARD VALLEY | C86: 89680 | E86: 7549.166667 | F86: 85910.54667 | H86: 0
A87: RESPITE
A88: UPHAM | C88: 48300 | E88: 3891.666667 | F88: 42861.06667 | H88: 0
A89: WEST 40TH | C89: 18740 | E89: 1570 | F89: 16511.44 | H89: 0
A90: WHEAT RIDGE PARK | C90: 52440 | E90: 4372.5 | F90: 51681.45333 | H90: 0
A91: HILLTOP | C91: 88010 | E91: 7205.833333 | F91: 85653.25333 | H91: 0 | I91: 0
A92: WEST 46TH | C92: 24770 | E92: 2020.833333 | F92: 23466.86667 | H92: 0
A93: ARVADA COTTAGES | C93: 69700 | E93: 5331.666667 | F93: 61478.64 | H93: 0
A94: ALLISON VILLAGE | C94: 96530 | E94: 8260.79375 | F94: 91679.45333 | H94: 0
A95: DISPERSED HOUSING
A97: TOTAL GENERAL EXPENSE | C97: 488170 | E97: 482429.525 | F97: 40202.46042 | H97: 459242.72 | I97: 360255.85
A100: FINANCING
A101: ORCHARD VALLEY | C101: 108800 | E101: 9066.666667 | F101: 108800 | H101: 0
A102: RESPITE
A103: UPHAM | C103: 0 | E103: 0 | F103: 0 | H103: No Mortgage
A104: WEST 40TH | C104: 23100 | E104: 1925 | F104: 23094.6 | H104: 0
A105: WHEAT RIDGE PARK | C105: 43310 | E105: 1780.833333 | F105: 43310 | H105: 0
A106: HILLTOP | C106: 130060 | E106: 10838.33333 | F106: 130060 | H106: 0 | I106: 0
A107: WEST 46TH | C107: 32580 | E107: 2715 | F107: 32580 | H107: 0
A108: ARVADA COTTAGES | C108: 142470 | E108: 11872.5 | F108: 142470 | H108: 0
A109: ALLISON VILLAGE | C109: 123770 | E109: 10314.16667 | F109: 123770 | H109: 0
A110: DISPERSED HOUSING
A112: TOTAL FINANCING | C112: 604090 | E112: 582150 | F112: 48512.5 | H112: 604084.6 | I112: 501472.65
A114: RESERVES
A115: ORCHARD VALLEY | C115: 4800 | E115: 400 | F115: 4800 | H115: 0
A116: RESPITE
A117: UPHAM | C117: 4800 | E117: 450 | F117: 4800 | H117: 0
A118: WEST 40TH | C118: 3600 | E118: 300 | F118: 3600 | H118: 0
A119: WHEAT RIDGE PARK | C119: 4800 | E119: 400 | F119: 4800 | H119: 0
A120: HILLTOP | C120: 3600 | E120: 400 | F120: 3600 | H120: 0 | I120: 0
A121: WEST 46TH | C121: 5400 | E121: 450 | F121: 5400 | H121: 0
A122: ARVADA COTTAGES | C122: 2400 | E122: 400 | F122: 2400 | H122: 0
A123: ALLISON VILLAGE | C123: 15600 | E123: 1300 | F123: 15600 | H123: 0
A124: DISPERSED HOUSING
A126: TOTAL RESERVES | C126: 45000 | E126: 49200 | F126: 4100 | H126: 45000 | I126: 33750
A128: CAPITAL EXPENDITURES
A129: ORCHARD VALLEY | C129: 3000 | E129: 2083.333333 | F129: 0 | H129: 0
A130: RESPITE
A131: UPHAM | C131: 0 | E131: 0 | F131: 0 | H131: 0
A132: WEST 40TH | C132: 0 | E132: 250 | F132: 3000 | H132: 0
A133: WHEAT RIDGE PARK | C133: 0 | E133: 0 | F133: 0 | H133: 0
A134: HILLTOP | C134: 22700 | E134: 2625 | F134: 7180 | H134: 0 | I134: 0
A135: WEST 46TH | C135: 2480 | E135: 206.6666667 | F135: 2480 | H135: 0
A136: ARVADA COTTAGES | C136: 22190 | E136: 416.6666667 | F136: 1372 | H136: 0
A137: ALLISON VILLAGE | C137: 5500 | E137: 0 | F137: 6618 | H137: 0
A138: DISPERSED HOUSING
A140: TOTAL CAPITAL EXP. | C140: 55870 | E140: 66980 | F140: 5581.666667 | H140: 20650 | I140: 41863.85
A143: TOTAL EXPENDITURES | C143: 2013930 | E143: 2089319.699 | F143: 175304.975 | H143: 1914976.873 | I143: 1530503.92
A145: NET GAIN/(LOSS) | C145: -380030 | E145: -263700.6994 | F145: -23170.05828 | H145: -261087.2333 | I145: -298229.95
A148: DEPRECIATION INCLUDED IN GENERAL EXP. | C148: 338260 | E148: 332520 | F148: 27710 | H148: 328251.32 | I148: 245471.46
A150: NET INCOME(LOSS) AFTER DEPRCIATION | C150: -41770 | E150: 68819.3006 | F150: 4539.941717 | H150: 67164.08667 | I150: -52758.49

Sheet Sheet2
C3: JEFFCO HOUSING CORPORATION
C4: FY 2017 OPERATING BUDGET
B6: Budget | C6: Budget | D6: Budget | F6: Actual
F7: YTD
B8: FY 2016 | C8: FY 2017 | D8: FY 2017 | E8: FY 2016 | F8: FY 2016
B9: ANNUAL | C9: ANNUAL | D9: Monthly | E9: 12MO Estimate | F9: at 9/30/16
A10: OPERATING RECEIPTS
A11: RENTAL INCOME | B11: 1166830 | C11: 1279761 | D11: 106646.75 | E11: 1237273.667 | F11: 923039
A12: TENNANT ASSISTANCE | B12: 433750 | C12: 443158 | D12: 36929.83333 | E12: 408717.3333 | F12: 306538
A13: VACANCIES | B13: -31360 | C13: -28660 | D13: -2388.333333 | E13: -17287.82667 | F13: -12965.87
A14: TRANSFER FROM RESERVES | B14: 45000 | C14: 72200 | D14: 6016.666667 | E14: 0 | F14: 0
A15: INTEREST INCOME | B15: 300 | C15: 260 | D15: 21.66666667 | E15: 248.0533333 | F15: 186.04
A16: LAUNDRY INCOME( Laundry) | B16: 11570 | C16: 11930 | D16: 994.1666667 | E16: 13168.72 | F16: 9876.54
A17: NSF & LATE CHARGES | B17: 2430 | C17: 2020 | D17: 168.3333333 | E17: 1986.666667 | F17: 1490
A18: OTHER INCOME | B18: 5380 | C18: 19950 | D18: 1662.5 | E18: 9783.026667 | F18: 4110.26
A19: GRANT INCOME | B19: 0 | C19: 25000 | D19: 2083.333333 | E19: 0 | F19: 0
A20: TOTAL OPERATING RECEIPTS | B20: 1633900 | C20: 1825619 | D20: 152134.9167 | E20: 1653889.64 | F20: 1232273.97
A22: OPERATING EXPENDITURES
A23: ADMINISTRATIVE | B23: 219440 | C23: 263340.3745 | D23: 21945.03121 | E23: 209434.8267 | F23: 159882.82
A24: OPERATING | B24: 163830 | C24: 173210.0697 | D24: 14434.17248 | E24: 167412.2467 | F24: 126414.39
A25: MAINTENANCE | B25: 437530 | C25: 472009.7301 | D25: 40529.14418 | E25: 409152.48 | F25: 306864.36
A26: GENERAL | B26: 488170 | C26: 482429.525 | D26: 40202.46042 | E26: 459242.72 | F26: 360255.85
A27: FINANCING | B27: 604090 | C27: 582150 | D27: 48512.5 | E27: 604084.6 | F27: 501472.65
A28: RESERVES | B28: 45000 | C28: 49200 | D28: 4100 | E28: 45000 | F28: 33750
A29: CAPITAL EXPENSE | B29: 55870 | C29: 66980 | D29: 5581.666667 | E29: 20650 | F29: 41863.85
A30: TOTAL OPERATING EXPENSE | B30: 2013930 | C30: 2089319.699 | D30: 175304.9749 | E30: 1914976.873 | F30: 1530503.92
A31: NET INCOME (LOSS) | B31: -380030 | C31: -263700.6994 | D31: -23170.05828 | E31: -261087.2333 | F31: -298229.95
A34: ADMINISTRATIVE EXPENDITURES
A35: OFFICE SALARIES | B35: 84520 | C35: 87880 | D35: 7323.333333 | E35: 85320.01333 | F35: 63990.01
A36: CONTRACT SALARY - DIRECTOR | B36: 0 | C36: 25000 | D36: 2083.333333 | E36: 0 | F36: 0
A37: CONTRACT EXPENSES - DIRECTOR | B37: 0 | C37: 15000 | D37: 1250 | E37: 27.73333333 | F37: 20.8
A38: OFFICE SUPPLIES | B38: 1970 | C38: 2959.6668 | D38: 246.6389 | E38: 3554 | F38: 2665.5
A39: DUES & MTG EXPENSE | B39: 820 | C39: 1250 | D39: 104.1666667 | E39: 1189.106667 | F39: 891.83
A40: CLIENT VERIFICATION SERVICES | B40: 3730 | C40: 1130 | D40: 94.16666667 | E40: 878.2 | F40: 2131.85
A41: MANAGEMENT FEE | B41: 78720 | C41: 85640 | D41: 7136.666667 | E41: 81422.02667 | F41: 61066.52
A42: LEGAL | B42: 4360 | C42: 4440 | D42: 370 | E42: 0 | F42: 0
A43: ACCOUNTING/AUDIT | B43: 17890 | C43: 17080 | D43: 1423.333333 | E43: 16497 | F43: 13706.25
A44: TELEPHONE | B44: 7500 | C44: 9220 | D44: 768.3333333 | E44: 7656.053333 | F44: 5742.04
A45: COMPUTER EXPENSES | B45: 8390 | C45: 780.3601333 | D45: 65.03001111 | E45: 732.4 | F45: 549.3
A46: MISC. ADMIN. EXPENSE | B46: 5160 | C46: 6000.3476 | D46: 500.0289667 | E46: 5409.906667 | F46: 4057.43
A47: TRAVEL | B47: 6380 | C47: 6960 | D47: 580 | E47: 6748.386667 | F47: 5061.29
A48: TOTAL ADMINISTRATIVE | B48: 219440 | C48: 263340.3745 | D48: 21945.03121 | E48: 209434.8267 | F48: 159882.82
A50: OPERATING EXPENDITURES
A51: ELECTRIC | B51: 53960 | C51: 51940.06973 | D51: 4328.339144 | E51: 50374.73333 | F51: 37781.05
A52: WATER | B52: 43940 | C52: 60870 | D52: 5072.5 | E52: 57114.68 | F52: 41099.46
A53: GAS | B53: 35020 | C53: 28520 | D53: 2376.666667 | E53: 26934.72 | F53: 20201.04
A54: SEWER | B54: 30910 | C54: 31880 | D54: 2656.666667 | E54: 32988.11333 | F54: 27332.84
A55: TOTAL OPERATING | B55: 163830 | C55: 173210.0697 | D55: 14434.17248 | E55: 167412.2467 | F55: 126414.39
A57: MAINTENANCE EXPENDITURES
A58: JANITORIAL CONTRACT & SUPPLY | B58: 12930 | C58: 11040 | D58: 920 | E58: 11692 | F58: 8769
A59: EXTERMINATING CONTRACT | B59: 15230 | C59: 16470 | D59: 1372.5 | E59: 14073.33333 | F59: 10555
A60: TRASH REMOVAL | B60: 16760 | C60: 16820.10347 | D60: 1401.675289 | E60: 15473.14667 | F60: 11604.86
A61: GROUNDS CONTRACT & SUPPLIES | B61: 37870 | C61: 44470 | D61: 3705.833333 | E61: 56255.54667 | F61: 42191.66
A62: REPAIR MATERIALS | B62: 71950 | C62: 80140 | D62: 6678.333333 | E62: 61681.89333 | F62: 46261.42
A63: REPAIR CONTRACT COSTS | B63: 99830 | C63: 94240 | D63: 7853.333333 | E63: 91526.57333 | F63: 68644.93
A64: CARPET & VINYL/PLANK | B64: 34300 | C64: 35440 | D64: 4148.333333 | E64: 46423.64 | F64: 34817.73
A65: APPLIANCES | B65: 28850 | C65: 39490 | D65: 3290.833333 | E65: 16567.96 | F65: 12425.97
A66: REPAIR PAYROLL | B66: 92140 | C66: 76549.62667 | D66: 6379.135556 | E66: 74289.86667 | F66: 55717.4
A67: SNOW REMOVAL | B67: 21290 | C67: 20520 | D67: 1710 | E67: 13113.33333 | F67: 9835
A68: CABINETS & FURNITURE | B68: 0 | C68: 18500 | D68: 1541.666667 | E68: 1916.266667 | F68: 1437.2
A69: SECURITY | B69: 6380 | C69: 18330 | D69: 1527.5 | E69: 6138.92 | F69: 4604.19
A70: TOTAL MAINTENANCE | B70: 437530 | C70: 472009.7301 | D70: 40529.14418 | E70: 409152.48 | F70: 306864.36
A72: GENERAL
A73: PAYROLL TAXES | B73: 13530 | C73: 12590 | D73: 1049.166667 | E73: 11942.64 | F73: 8956.98
A74: PROP & LIAB. INSURANCE | B74: 61310 | C74: 66519.525 | D74: 5543.29375 | E74: 64325 | F74: 64759.09
A75: EMPLOYEE BENEFITS | B75: 52990 | C75: 49330 | D75: 4110.833333 | E75: 37299.92 | F75: 27974.94
A76: WORKMAN'S COMPENSATION | B76: 5290 | C76: 5110 | D76: 425.8333333 | E76: 8736.52 | F76: 6552.39
A77: EMPLOYEE COMPENSATION | B77: 5290 | C77: 5110 | D77: 425.8333333 | E77: 0 | F77: 0
A78: BAD DEBT LOSS | B78: 5800 | C78: 5040 | D78: 420 | E78: 4040.493333 | F78: 3055.87
A79: LOSS ON DISPOSAL FIXED ASSET | B79: 5600 | C79: 6190 | D79: 515.8333333 | E79: 4646.826667 | F79: 3485.12
A80: DEPRECIATION | B80: 338260 | C80: 332520 | D80: 27710 | E80: 328251.32 | F80: 245471.46
A81: OTHER INTEREST PAID | B81: 100 | C81: 20 | D81: 1.666666667 | E81: 0 | F81: 0
A82: TOTAL GENERAL EXPENSE | B82: 488170 | C82: 482429.525 | D82: 40202.46042 | E82: 459242.72 | F82: 360255.85
A84: FINANCING
A85: INTEREST ON MORTGAGE | B85: 147350 | C85: 129850 | D85: 10820.83333 | E85: 175188.12 | F85: 124184.65
A86: MORTGAGE | B86: 456740 | C86: 452300 | D86: 37691.66667 | E86: 428896.48 | F86: 377288
A87: TOTAL FINANCING | B87: 604090 | C87: 582150 | D87: 48512.5 | E87: 604084.6 | F87: 501472.65
A89: RESERVES
A90: REPLACEMENT RESERVES | B90: 45000 | C90: 49200 | D90: 4100 | E90: 45000 | F90: 33750
A91: TOTAL RESERVES | B91: 45000 | C91: 49200 | D91: 4100 | E91: 45000 | F91: 33750
A93: CAPITAL EXPENDITURES
A94: LAND & IMPROVEMENTS | B94: 15000 | C94: 5000 | D94: 416.6666667 | E94: 0 | F94: 0
A95: BUILDING | B95: 0 | C95: 0 | D95: 0 | E95: 0 | F95: 0
A96: BUILDING IMPROVEMENTS | B96: 14500 | C96: 0 | D96: 0 | E96: 0 | F96: 17774
A97: BLDG EQUIPT FIXED | B97: 23870 | C97: 61980 | D97: 5165 | E97: 12232 | F97: 17472
A98: BLDG. EQUIP. PORTABLE | B98: 0 | C98: 0 | D98: 0 | E98: 1800 | F98: 0
A99: FURNISHINGS | B99: 0 | C99: 0 | D99: 0 | E99: 0 | F99: 0
A100: MISC. FIXED ASSETS | B100: 2500 | C100: 0 | D100: 0 | E100: 6618 | F100: 6617.85
A101: TOTAL CAPITAL EXP. | B101: 55870 | C101: 66980 | D101: 5581.666667 | E101: 20650 | F101: 41863.85
A103: TOTAL EXPENDITURES | B103: 2013930 | C103: 2089319.699 | D103: 175304.9749 | E103: 1914976.873 | F103: 1530503.92
A105: NET INCOME (LOSS) | B105: -380030 | C105: -263700.6994 | D105: -23170.05828 | E105: -261087.2333 | F105: -298229.95
A107: DEPRECIATION INCLUDED ABOVE | B107: 338260 | C107: 332520 | D107: 27710 | E107: 328251.32 | F107: 245471.46
A109: NET INCOME(LOSS) AFTER DEPRECIATION | B109: -41770 | C109: 68819.3006 | D109: 4539.941717 | E109: 67164.08667 | F109: -52758.49

Sheet Orchard Valley
C4: JEFFCO HOUSING CORPORATION
C5: ORCHARD VALLEY APARTMENTS | G5: On 09/30/2016 Replacement Reserves $87,863.28
C6: FY 2017 OPERATING BUDGET | G6: Residual Receipts Reserve $58,837.34
G7: Together total $146,700.62
B8: Budget | C8: Budget | D8: Budget | F8: Actual | G8: 32 Units
F9: YTD | G9: 3% increase over 12/31/2016 potential estimate
B10: FY 2016 | C10: FY 2017 | D10: FY 2017 | E10: FY 2016 | F10: FY 2016 | G10: unless otherwise noted
B11: ANNUAL | C11: ANNUAL | D11: Monthly | E11: 12MO Estimate | F11: at 9/30/16 | G11: Mortgage Ends July 2018
A12: OPERATING RECEIPTS
A13: RENTAL INCOME | B13: 293100 | C13: 341710 | D13: =C13/12 -> 28475.83333 | E13: 317580 | F13: 234150 | G13: proposed increases (aprox. 7.6% )
A15: VACANCIES | B15: -5860 | C15: -6480 | D15: -540 | E15: =F15/9*12 -> -2443.333333 | F15: -1832.5 | G15: 2% of Rental Income
A16: TRANSFER FROM RESERVES | B16: 0 | C16: 25000 | D16: 2083.333333 | E16: 0 | F16: 0 | G16: Transfer to cover cost of boiler.
A17: INTEREST INCOME | B17: 30 | C17: 30 | D17: 2.5 | E17: =F17/9*12 -> 29.33333333 | F17: 22
A18: LAUNDRY INCOME( Laundry) | B18: 1200 | C18: 1600 | D18: 133.3333333 | E18: 1605.333333 | F18: 1204 | G18: Based on projected 12/31/2016
A19: NSF & LATE CHARGES | B19: 200 | C19: 100 | D19: 8.333333333 | E19: 24 | F19: 18 | G19: Rents collected in a more timely basis - reduced amount of late fees
A20: OTHER INCOME | B20: 80 | C20: 15080 | D20: 1256.666667 | E20: 678.32 | F20: 508.74 | G20: Grant Award for CHDO Admin & collections from Jeffco
A21: GRANT INCOME | B21: 0 | C21: 25000 | D21: =C21/12 -> 2083.333333 | E21: =F21/9*12 -> 0 | F21: 0 | G21: Grant Award for CHDO Operating Funds from CDOH
A22: TOTAL OPERATING RECEIPTS | B22: =SUM(B13:B21) -> 288750 | C22: =SUM(C13:C21) -> 402040 | D22: 33503.33333 | E22: 317473.6533 | F22: 234070.24
A24: OPERATING EXPENDITURES
A25: ADMINISTRATIVE | B25: =B50 -> 34700 | C25: =C50 -> 78070 | D25: =D50 -> 6505.833333 | E25: =E50 -> 35333.21333 | F25: =F50 -> 26784.91
A26: OPERATING | B26: =B57 -> 44730 | C26: =C57 -> 44430 | D26: =D57 -> 3702.5 | E26: =E57 -> 42477.69333 | F26: =F57 -> 31858.27
A27: MAINTENANCE | B27: =B72 -> 65830 | C27: =C72 -> 77660 | D27: =D72 -> 6471.666667 | E27: =E72 -> 71375.34667 | F27: =F72 -> 53531.51
A28: GENERAL | B28: =B84 -> 89680 | C28: =C84 -> 90590 | D28: =D84 -> 7549.166667 | E28: =E84 -> 85910.54667 | F28: =F84 -> 68530.28
A29: FINANCING | B29: =B89 -> 108800 | C29: =C89 -> 108800 | D29: =D89 -> 9066.666667 | E29: =E89 -> 108800 | F29: =F89 -> 90667.1
A30: RESERVES | B30: =B93 -> 4800 | C30: =C93 -> 4800 | D30: =D93 -> 400 | E30: =E93 -> 4800 | F30: =F93 -> 3600
A31: CAPITAL EXPENSE | B31: =B103 -> 3000 | C31: =C103 -> 25000 | D31: =D103 -> 2083.333333 | E31: =E103 -> 0 | F31: =F103 -> 0
A32: TOTAL OPERATING EXPENSE | B32: =SUM(B25:B31) -> 351540 | C32: =SUM(C25:C31) -> 429350 | D32: =SUM(D25:D31) -> 35779.16667 | E32: =SUM(E25:E31) -> 348696.8 | F32: =SUM(F25:F31) -> 274972.07
A33: NET INCOME (LOSS) | B33: =SUM(B22-B32) -> -62790 | C33: =SUM(C22-C32) -> -27310 | D33: =SUM(D22-D32) -> -2275.833333 | E33: =SUM(E22-E32) -> -31223.14667 | F33: =SUM(F22-F32) -> -40901.83
A36: ADMINISTRATIVE EXPENDITURES
A37: OFFICE SALARIES | B37: 10590 | C37: 13050 | D37: =C37/12 -> 1087.5 | E37: =F37/9*12 -> 12672 | F37: 9504
A38: CONTRACT - DIRECTOR | B38: 0 | C38: 25000 | D38: =C38/12 -> 2083.333333 | E38: =F38/9*12 -> 0 | F38: 0 | G38: Grant stipulates Salary Wages Benefits only
A39: CONTRACT EXPENSES | B39: 0 | C39: 15000 | D39: 1250 | E39: 27.73333333 | F39: 20.8 | G39: Operating Funds to support admin to acquire & rehab site for affodable housing - Paid to JHC
A40: OFFICE SUPPLIES | B40: 250 | C40: 260 | D40: =C40/12 -> 21.66666667 | E40: =F40/9*12 -> 254.4933333 | F40: 190.87
A41: DUES & MTG EXPENSE | B41: 110 | C41: 110 | D41: 9.166666667 | E41: =F41/9*12 -> 97.94666667 | F41: 73.46
A42: CLIENT VERFICATION SERVICES | B42: 60 | C42: 150 | D42: =C42/12 -> 12.5 | E42: =F42/9*12 -> 147.2 | F42: 110.4
A43: MANAGEMENT FEE | B43: 14440 | C43: 16850 | D43: 1404.166667 | E43: 15603.22667 | F43: 11702.42 | G43: 5% of total income minus interest & Grants & Transfers from Reserves
A44: LEGAL | B44: 420 | C44: 430 | D44: 35.83333333 | E44: 0 | F44: 0 | G44: One legal $245 + $50 & one sheriff fee $135
A45: ACCOUNTING/AUDIT | B45: 3590 | C45: 3290 | D45: 274.1666667 | E45: 3190 | F45: 2677.5
A46: TELEPHONE | B46: 1260 | C46: 1420 | D46: 118.3333333 | E46: 1256.506667 | F46: 942.38 | G46: Increase for tablets
A47: COMPUTER EXPENSES | B47: 1680 | C47: 160 | D47: 13.33333333 | E47: 156.3066667 | F47: 117.23
A48: MISC. ADMIN. EXPENSE | B48: 1350 | C48: 1420 | D48: 118.3333333 | E48: 1024.266667 | F48: 768.2
A49: TRAVEL & TRAINING | B49: 950 | C49: 930 | D49: 77.5 | E49: 903.5333333 | F49: 677.65
A50: TOTAL ADMINISTRATIVE | B50: =SUM(B37:B49) -> 34700 | C50: =SUM(C37:C49) -> 78070 | D50: =SUM(D37:D49) -> 6505.833333 | E50: =SUM(E37:E49) -> 35333.21333 | F50: =SUM(F37:F49) -> 26784.91
A52: OPERATING EXPENDITURES
A53: ELECTRIC | B53: 21840 | C53: 20280 | D53: =C53/12 -> 1690 | E53: =F53/9*12 -> 19691.70667 | F53: 14768.78 | G53: 0.03
A54: WATER | B54: 7230 | C54: 11270 | D54: =C54/12 -> 939.1666667 | E54: 10434 | F54: 7825.5 | G54: 8%
A55: GAS | B55: 12330 | C55: 9520 | D55: =C55/12 -> 793.3333333 | E55: 9151.986667 | F55: 6863.99 | G55: 4%
A56: SEWER | B56: 3330 | C56: =E56+E56*5% -> 3360 | D56: =C56/12 -> 280 | E56: 3200 | F56: 2400 | G56: 5% - Billed Quarterly
A57: TOTAL OPERATING | B57: =SUM(B53:B56) -> 44730 | C57: =SUM(C53:C56) -> 44430 | D57: =SUM(D53:D56) -> 3702.5 | E57: =SUM(E53:E56) -> 42477.69333 | F57: =SUM(F53:F56) -> 31858.27
A59: MAINTENANCE EXPENDITURES
A60: JANITORIAL CONTRACT & SUPPLY | B60: 2580 | C60: 1900 | D60: =C60/12 -> 158.3333333 | E60: =F60/9*12 -> 1838.666667 | F60: 1379 | G60: 3% & Clean Laundry Rooms $100month($1200yr) - $1300 for turnovers
A61: EXTERMINATING CONTRACT | B61: 1080 | C61: 2230 | D61: 185.8333333 | E61: 1101.333333 | F61: 826 | G61: Contract $169 mo $2028. year plus $200 for extra services.
A62: TRASH REMOVAL | B62: 2010 | C62: 1980 | D62: 165 | E62: 1906.213333 | F62: 1429.66 | G62: 4%
A63: GROUNDS CONTRACT & SUPPLIES | B63: 5560 | C63: 5870 | D63: 489.1666667 | E63: 9240 | F63: 6930 | G63: 3% +$130 week April-Oct (30wks=$3900.) +$800 Sprinkler & $1000 add cleanup(trees/shrubs).
A64: REPAIR MATERIALS | B64: 13000 | C64: 14930 | D64: 1244.166667 | E64: 14494.96 | F64: 10871.22 | G64: 3% 2017 items $2100. Lighting, $200 Dumster Gates ,&2 Laundry room floors $2500.
A65: REPAIR CONTRACT COSTS | B65: 15000 | C65: 13850 | D65: 1154.166667 | E65: 13439.77333 | F65: 10079.83 | G65: 3% 2017 $7500.Paint 2 blds,
A66: CARPET & VINYL/PLANK | B66: 8000 | C66: 8000 | D66: =C66/12 -> 666.6666667 | E66: =F66/9*12 -> 17487.73333 | F66: 13115.8 | G66: 2 units plank @ $4000.00 ea
A67: APPLIANCES | B67: 2880 | C67: 8780 | D67: 731.6666667 | E67: 1697.333333 | F67: 1273 | G67: 2 Refrigerators ($600.ea), 2 Ranges ($475 ea), 2 Dishwashers ($385ea) 4Washer/4Dryer@$700 ea($5600)
A68: REPAIR PAYROLL | B68: 11370 | C68: 8260 | D68: 688.3333333 | E68: 8022.666667 | F68: 6017
A69: SNOW REMOVAL | B69: 4350 | C69: 3860 | D69: 321.6666667 | E69: 2146.666667 | F69: 1610 | G69: 6 yr average x 10 snow days
A70: CABINETS & FURNITURE | B70: 0 | C70: 0 | D70: =C70/12 -> 0 | E70: =F70/9*12 -> 0 | F70: 0
A71: SECURITY | B71: 0 | C71: 8000 | D71: 666.6666667 | E71: 0 | F71: 0 | G71: Estimate for Cameras
A72: TOTAL MAINTENANCE | B72: =SUM(B60:B71) -> 65830 | C72: =SUM(C60:C71) -> 77660 | D72: =SUM(D60:D71) -> 6471.666667 | E72: 71375.34667 | F72: 53531.51
A74: GENERAL
A75: PAYROLL TAXES | B75: 1680 | C75: 1630 | D75: =C75/12 -> 135.8333333 | E75: =F75/9*12 -> 1569.52 | F75: 1177.14 | G75: 7.65% of Payroll
A76: PROP & LIAB. INSURANCE | B76: 10100 | C76: 11060 | D76: 921.6666667 | E76: 10743 | F76: 10743 | G76: 3.5% for General Liability No Increase in Property Liability
A77: EMPLOYEE BENEFITS | B77: 6590 | C77: 6390 | D77: 532.5 | E77: 4970.68 | F77: 3728.01 | G77: 30.% of payroll - Health, Dental, CCOERA
A78: WORKMAN'S COMPENSATION | B78: 660 | C78: 820 | D78: 68.33333333 | E78: 793.9866667 | F78: 595.49 | G78: 3.% of payroll
A79: EMPLOYEE COMPENSATION | B79: 660 | C79: 820 | D79: 68.33333333 | E79: 0 | F79: 0 | G79: 3.% of payroll
A80: BAD DEBT LOSS | B80: 500 | C80: 790 | D80: 65.83333333 | E80: 766 | F80: 766 | G80: Estimate
A81: LOSS ON DISPOSAL FIXED ASSET | B81: 1230 | C81: 820 | D81: =C81/12 -> 68.33333333 | E81: 797.36 | F81: 598.02 | G81: Estimate
A82: DEPRECIATION | B82: 68260 | C82: 68260 | D82: 5688.333333 | E82: 66270 | F82: 50922.62
A84: TOTAL GENERAL EXPENSE | B84: =SUM(B75:B82) -> 89680 | C84: =SUM(C75:C82) -> 90590 | D84: =SUM(D75:D82) -> 7549.166667 | E84: =SUM(E75:E82) -> 85910.54667 | F84: =SUM(F75:F82) -> 68530.28
A86: FINANCING
A87: INTEREST ON MORTGAGE | B87: 11890 | C87: 11890 | D87: =C87/12 -> 990.8333333 | E87: 11890 | F87: 10278.87 | G87: Amortization Schedule
A88: MORTGAGE | B88: 96910 | C88: 96910 | D88: =C88/12 -> 8075.833333 | E88: 96910 | F88: 80388.23
A89: TOTAL FINANCING | B89: =SUM(B87:B88) -> 108800 | C89: =SUM(C87:C88) -> 108800 | D89: =SUM(D87:D88) -> 9066.666667 | E89: =SUM(E87:E88) -> 108800 | F89: =SUM(F87:F88) -> 90667.1
A91: RESERVES
A92: REPLACEMENT RESERVES | B92: 4800 | C92: 4800 | D92: =C92/12 -> 400 | E92: =F92/9*12 -> 4800 | F92: 3600
A93: TOTAL RESERVES | B93: =B92 -> 4800 | C93: =C92 -> 4800 | D93: =D92 -> 400 | E93: =SUM(E92) -> 4800 | F93: =SUM(F92) -> 3600
A95: CAPITAL EXPENDITURES
A96: LAND & IMPROVEMENTS | B96: =SUM(D96*12*1.03) -> 0 | C96: 0 | D96: =C96/12 -> 0 | E96: =F96/9*12 -> 0 | F96: 0
A97: BUILDING | B97: 0 | C97: 0 | D97: =C97/12 -> 0 | E97: 0 | F97: 0
A98: BUILDING IMPROVEMENTS | B98: 0 | C98: 0 | D98: =C98/12 -> 0 | E98: 0 | F98: 0
A99: BLDG EQUIPT FIXED | B99: 3000 | C99: 25000 | D99: 2083.333333 | E99: 0 | F99: 0 | G99: Boiler
A100: BLDG. EQUIP. PORTABLE | B100: 0 | C100: 0 | D100: 0 | E100: 0 | F100: 0
A101: FURNISHINGS | B101: 0 | C101: 0 | D101: 0 | E101: 0 | F101: 0
A102: MISC. FIXED ASSETS | B102: 0 | C102: 0 | D102: 0 | E102: 0 | F102: 0
A103: TOTAL CAPITAL EXP. | B103: =SUM(B96:B102) -> 3000 | C103: =SUM(C96:C102) -> 25000 | D103: 2083.333333 | E103: 0 | F103: 0
A105: TOTAL EXPENDITURES | B105: =SUM(B103+B93+B89+B84+B72+B57+B50) -> 351540 | C105: =SUM(C103+C93+C89+C84+C72+C57+C50) -> 429350 | D105: =SUM(D103+D93+D89+D84+D72+D57+D50) -> 35779.16667 | E105: =SUM(E103+E93+E89+E84+E72+E57+E50) -> 348696.8 | F105: =SUM(F103+F93+F89+F84+F72+F57+F50) -> 274972.07
A107: NET INCOME (LOSS) | B107: =SUM(B22-B105) -> -62790 | C107: =SUM(C22-C105) -> -27310 | D107: =SUM(D22-D105) -> -2275.833333 | E107: =SUM(E22-E105) -> -31223.14667 | F107: =SUM(F22-F105) -> -40901.83
A109: DEPRECIATION INCLUDED ABOVE | B109: 68260 | C109: 68260 | D109: 5688 | E109: 66270 | F109: 50923
A111: NET INCOME(LOSS) AFTER DEPRECIATION | B111: =B107+B109 -> 5470 | C111: =C107+C109 -> 40950 | D111: 3412.166667 | E111: 35046.85333 | F111: 10021.17

Sheet UPHAM
B4: JEFFCO HOUSING CORPORATION
B6: UPHAM STREET APTS. & RESPITE HOME
B7: FY 2017 OPERATING BUDGET | G7: Respite | H7: Upham | I7: On 9/30/2016 Upham Replacement Reserves $90,526.03
F8: Combined | G8: Actual | H8: Actual | I8: 14 Units
B9: Budget | C9: Budget | D9: Budget | F9: YTD | G9: YTD | H9: YTD | I9: 3% increase over 12/31/2016 potential estimate
B10: FY 2016 | C10: FY 2017 | D10: FY 2017 | E10: FY 2016 | F10: FY 2016 | G10: FY 2016 | H10: FY 2016 | I10: unless otherwise noted
B11: ANNUAL | C11: ANNUAL | D11: Monthly | E11: 12MO Estimate | F11: at 9/30/16 | G11: at 9/30/16 | H11: at 9/30/16 | I11: Mortgage paid off 2009
A12: OPERATING RECEIPTS
A13: RENTAL INCOME-UPHAM | B13: 108600 | C13: 116300 | D13: =C13/12 -> 9691.666667 | E13: =F13/9*12 -> 108600 | F13: =G13+H13 -> 81450 | G13: 0 | H13: 81450 | I13: Upham extimate 7% increase proposed changes
A15: LESS: VACANCIES UPHAM | B15: -1800 | C15: -1740 | D15: -145 | E15: 0 | F15: =G15+H15 -> 0 | G15: 0 | H15: 0 | I15: 1.5% Estimate based on lower vacancies in 2016
A16: RENTAL INCOME-RESPITE | B16: 13200 | C16: 14400 | D16: 1200 | E16: 14300 | F16: 10700 | G16: 10700 | H16: 0 | I16: No Increase
A17: INTEREST | B17: 20 | C17: 20 | D17: 1.666666667 | E17: 19.28 | F17: 14.46 | G17: 0 | H17: 14.46
A18: LAUNDRY INCOME - UPHAM | B18: 2780 | C18: 3000 | D18: 250 | E18: 3079.306667 | F18: 2309.48 | G18: 0 | H18: 2309.48
A19: NSF & LATE FEES | B19: 170 | C19: 50 | D19: 4.166666667 | E19: 54.66666667 | F19: 41 | G19: 0 | H19: 41
A20: OTHER INCOME | B20: 360 | C20: 750 | D20: 62.5 | E20: 750 | F20: 289.83 | G20: 57.96 | H20: 231.87 | I20: Collections and approximately $700.00 from City of Wheat Ridge-shared water costs
A22: TOTAL OPERATING RECEIPTS | B22: =SUM(B13:B21) -> 123330 | C22: 132780 | D22: 11065 | E22: 126803.2533 | F22: 94804.77 | G22: 10757.96 | H22: 84046.81
A24: OPERATING EXPENDITURES
A25: ADMINISTRATIVE | B25: =B50 -> 24460 | C25: =C50 -> 25719.6668 | D25: =D50 -> 2143.305567 | E25: =E50 -> 23495.44 | F25: =F50 -> 17756.58 | G25: 7.67 | H25: =H50 -> 17748.91
A26: OPERATING | B26: =B57 -> 15020 | C26: =C57 -> 17690 | D26: =D57 -> 1474.166667 | E26: =E57 -> 18420.64 | F26: =F57 -> 13124.2 | G26: 893.01 | H26: =H57 -> 12231.19
A27: MAINTENANCE | B27: =B72 -> 47740 | C27: =C72 -> 51179.62667 | D27: =D72 -> 4264.968889 | E27: =E72 -> 26234.28 | F27: =F72 -> 19675.71 | G27: 264.67 | H27: =H72 -> 19411.04
A28: GENERAL | B28: =B84 -> 48300 | C28: =C84 -> 46700 | D28: =D84 -> 3891.666667 | E28: =E84 -> 42861.06667 | F28: =F84 -> 33396.39 | G28: 4163.02 | H28: =H84 -> 29233.37
A29: FINANCING | B29: =B89 -> 0 | C29: =C89 -> 0 | D29: =D89 -> 0 | E29: =E89 -> 0 | F29: =F89 -> 0 | G29: 0 | H29: =H89 -> 0
A30: RESERVES | B30: =B93 -> 4800 | C30: =C93 -> 5400 | D30: =D93 -> 450 | E30: =E93 -> 4800 | F30: =F93 -> 3600 | G30: 0 | H30: =H93 -> 3600
A31: CAPITAL EXPENSE | B31: =B103 -> 0 | C31: =C103 -> 0 | D31: =D103 -> 0 | E31: =E103 -> 0 | F31: =F103 -> 0 | G31: 0 | H31: =H103 -> 0
A32: TOTAL OPERATING EXPENSE | B32: =SUM(B25:B31) -> 140320 | C32: =SUM(C25:C31) -> 146689.2935 | D32: =SUM(D25:D31) -> 12224.10779 | E32: =SUM(E25:E31) -> 115811.4267 | F32: =SUM(F25:F31) -> 87552.88 | G32: 5328.37 | H32: =SUM(H25:H31) -> 82224.51
A33: NET INCOME (LOSS) | B33: =SUM(B22-B32) -> -16990 | C33: =SUM(C22-C32) -> -13909.29347 | D33: =SUM(D22-D32) -> -1159.107789 | E33: =SUM(E22-E32) -> 10991.82667 | F33: =SUM(F22-F32) -> 7251.89 | G33: 5429.59 | H33: =SUM(H22-H32) -> 1822.3
A36: ADMINISTRATIVE EXPENDITURES
A37: OFFICE SALARIES | B37: 13770 | C37: 14070 | D37: =C37/12 -> 1172.5 | E37: =F37/9*12 -> 13656 | F37: =G37+H37 -> 10242 | G37: 0 | H37: 10242
A40: OFFICE SUPPLIES | B40: 120 | C40: =E40+E40*3% -> 209.6668 | D40: =C40/12 -> 17.47223333 | E40: 203.56 | F40: 152.67 | G40: 7.67 | H40: 145 | I40: $110.00 Upham $10.00 Respite New - Respite 20.00 & Upham $190.00
A41: DUES & MTG EXPENSE | B41: 50 | C41: 120 | D41: 10 | E41: 120 | F41: 90 | G41: 0 | H41: 90 | I41: contains CPM dues for Mike Hunter
A42: CLIENT VERIFICATION SERV. | B42: 0 | C42: 100 | D42: 8.333333333 | E42: 0 | F42: 0 | G42: 0 | H42: 0 | I42: Estimate
A43: MANAGEMENT FEE | B43: 5500 | C43: 6620 | D43: 551.6666667 | E43: 5602.133333 | F43: 4201.6 | G43: 0 | H43: 4201.6 | I43: Based on 5% of total income minus interest UPHAM Only
A44: LEGAL | B44: 420 | C44: 430 | D44: 35.83333333 | E44: 0 | F44: 0 | G44: 0 | H44: 0 | I44: One legal $245 + $50 & one sheriff fee $135
A45: ACCOUNTING/AUDIT | B45: 1760 | C45: 1550 | D45: 129.1666667 | E45: 1500 | F45: 1260 | G45: 0 | H45: 1260
A46: TELEPHONE | B46: 300 | C46: 500 | D46: 41.66666667 | E46: 367.6 | F46: 275.7 | G46: 0 | H46: 275.7 | I46: increase for tablets
A47: COMPUTER EXPENSE | B47: 560 | C47: 120 | D47: 10 | E47: 111.44 | F47: 83.58 | G47: 0 | H47: 83.58
A48: MISC. ADMIN. EXPENSE | B48: 820 | C48: 960 | D48: 80 | E48: 926.6666667 | F48: 695 | G48: 0 | H48: 695
A49: TRAVEL & TRAINING | B49: 1160 | C49: 1040 | D49: 86.66666667 | E49: 1008.04 | F49: 756.03 | G49: 0 | H49: 756.03
A50: TOTAL ADMINISTRATIVE | B50: =SUM(B37:B49) -> 24460 | C50: 25719.6668 | D50: 2143.305567 | E50: 23495.44 | F50: 17756.58 | G50: 7.67 | H50: 17748.91
A52: OPERATING EXPENDITURES
A53: ELECTRIC | B53: 1450 | C53: 1170 | D53: =C53/12 -> 97.5 | E53: =F53/9*12 -> 1134.733333 | F53: =G53+H53 -> 851.05 | G53: 0 | H53: 851.05 | I53: 3.0% all Upham Respite billed to Tenant
A54: WATER | B54: 5890 | C54: 10150 | D54: =C54/12 -> 845.8333333 | E54: 10150 | F54: 7048.72 | G54: 719.01 | H54: 6329.71 | I54: 8% $9115.00 Upham $1035.00 Respite
A55: GAS | B55: 4970 | C55: 3630 | D55: =C55/12 -> 302.5 | E55: 3485.906667 | F55: 2614.43 | G55: 0 | H55: 2614.43 | I55: 4% all Upham Respite billed to Tenant
A56: SEWER | B56: 2710 | C56: 2740 | D56: =C56/12 -> 228.3333333 | E56: 3650 | F56: 2610 | G56: 174 | H56: 2436 | I56: 5% - Annual $3410.00 Upham $240.00 Respite
A57: TOTAL OPERATING | B57: =SUM(B53:B56) -> 15020 | C57: =SUM(C53:C56) -> 17690 | D57: =SUM(D53:D56) -> 1474.166667 | E57: =SUM(E53:E56) -> 18420.64 | F57: =SUM(F53:F56) -> 13124.2 | G57: 893.01 | H57: =SUM(H53:H56) -> 12231.19
A59: MAINTENANCE EXPENDITURES
A60: JANITORIAL CONTRACT & SUPPLIES | B60: 1130 | C60: 850 | D60: =C60/12 -> 70.83333333 | E60: =F60/9*12 -> 820 | F60: =G60+H60 -> 615 | G60: 0 | H60: 615
A61: EXTERMINATION CONTRACT | B61: 1080 | C61: 1390 | D61: 115.8333333 | E61: 761.3333333 | F61: 571 | G61: 0 | H61: 571 | I61: Contract $99 mo $1188. year plus $200 for extra services.
A62: TRASH REMOVAL | B62: 1280 | C62: 1220 | D62: 101.6666667 | E62: 1318.32 | F62: 988.74 | G62: 0 | H62: 988.74 | I62: 4% & Contract $109.86 month ($1318.yr)
A63: GROUNDS CONTRACT | B63: 4270 | C63: 4020 | D63: 335 | E63: 3186.666667 | F63: 2390 | G63: 75 | H63: 2315 | I63: 3% + 2016 rate of $95. wk April-Oct(30wks=$2850.)+$350 trim junipers $450 cleanup & $250.00 Respite
A64: REPAIR MATERIALS | B64: 5460 | C64: 5270 | D64: 439.1666667 | E64: 5114.453333 | F64: 3835.84 | G64: 5.67 | H64: 3830.17 | I64: 3% and $100.00 Respite
A65: REPAIR CONTRACT | B65: 14090 | C65: 19650 | D65: 1637.5 | E65: 4634.666667 | F65: 3476 | G65: 184 | H65: 3292 | I65: 3% + Steps $5k & Ext Paint $10k, Doors $1k. Alsphalt $1k Mailbox $1.2k & $880.00 Respite
A66: CARPET & VINYL/PLANK | B66: 4800 | C66: 2500 | D66: 208.3333333 | E66: 486.84 | F66: 365.13 | G66: 0 | H66: 365.13 | I66: 2 units carpet / vinyl $1250 each
A67: APPLIANCES | B67: 3100 | C67: 6100 | D67: 508.3333333 | E67: 713.3333333 | F67: 535 | G67: 0 | H67: 535 | I67: 2 Refridge $600 ea & 3 Ranges @$500 ea & 2 Wash/ 2 Dry $2,800 + $600 Respite dishwasher
A68: REPAIR PAYROLL | B68: 11000 | C68: =E68+E68*3% -> 7929.626667 | D68: 660.8022222 | E68: 7698.666667 | F68: 5774 | G68: 0 | H68: 5774
A69: SNOW REMOVAL | B69: 1530 | C69: 2250 | D69: 187.5 | E69: 1500 | F69: 1125 | G69: 0 | H69: 1125 | I69: based on average $225 per snow x 10 incidents
A70: CABINETS & FURNITURE | B70: 0 | C70: 0 | D70: =C70/12 -> 0 | E70: 0 | F70: 0 | G70: 0 | H70: 0
A71: SECURITY | B71: 0 | C71: 0 | D71: =C71/12 -> 0 | E71: =F71/9*12 -> 0 | F71: 0 | G71: 0 | H71: 0
A72: TOTAL MAINTENANCE | B72: =SUM(B60:B71) -> 47740 | C72: =SUM(C60:C71) -> 51179.62667 | D72: 4264.968889 | E72: 26234.28 | F72: 19675.71 | G72: 264.67 | H72: 19411.04
A74: GENERAL
A75: PAYROLL TAXES | B75: 1900 | C75: 1680 | D75: =C75/12 -> 140 | E75: =F75/9*12 -> 1867.493333 | F75: =G75+H75 -> 1400.62 | G75: 0 | H75: 1400.62 | I75: 7.65% of Payroll
A76: PROP & LIABILITY INSURANCE | B76: 4220 | C76: 5180 | D76: =C76/12 -> 431.6666667 | E76: 5001 | F76: 5001.34 | G76: 305.96 | H76: 4695.38 | I76: 3.5% for General Liability = $4860.Upham & $320. Respite No Increase in Property Liability
A77: EMP BENEFITS | B77: 7430 | C77: 6600 | D77: 550 | E77: 5799.893333 | F77: 4349.92 | G77: 0 | H77: 4349.92 | I77: 30.% of payroll - Health, Dental, CCOERA
A78: WORKMENS COMPENSATION | B78: 740 | C78: 660 | D78: 55 | E78: 793.9866667 | F78: 595.49 | G78: 0 | H78: 595.49 | I78: 3.% of payroll
A79: EMPLOYEE COMPENSATION | B79: 740 | C79: 660 | D79: 55 | E79: 0 | F79: 0 | G79: 0 | H79: 0 | I79: 3.% of payroll
A80: BAD DEBT LOSS | B80: 500 | C80: 500 | D80: 41.66666667 | E80: 0 | F80: 0 | G80: 0 | H80: 0 | I80: esitmate
A81: LOSS ON DISPOSAL FIXED ASSET | B81: 1140 | C81: 1140 | D81: =C81/12 -> 95 | E81: 0 | F81: 0 | G81: 0 | H81: 0 | I81: esitmate - $1000.00 Upham and $140.00 Respite
A82: DEPRECIATION | B82: 31630 | C82: 30280 | D82: 2523.333333 | E82: 29398.69333 | F82: 22049.02 | G82: 3857.06 | H82: 18191.96 | I82: $26,370.00 Upham and $5260.00 Respite
A84: TOTAL GENERAL EXPENSE | B84: =SUM(B75:B82) -> 48300 | C84: =SUM(C75:C82) -> 46700 | D84: 3891.666667 | E84: 42861.06667 | F84: =SUM(F75:F82) -> 33396.39 | G84: 4163.02 | H84: 29233.37
A86: FINANCING
A87: MORTGAGE INTEREST | B87: 0 | C87: 0 | D87: =C87/12 -> 0 | E87: =H87/9 -> 0 | F87: =G87+H87 -> 0 | G87: 0 | H87: 0
A88: MORTGAGE PRINCIPAL | B88: 0 | C88: 0 | D88: =C88/12 -> 0 | E88: =H88/9 -> 0 | F88: 0 | G88: 0 | H88: 0
A89: TOTAL FINANCING | B89: =SUM(B87:B88) -> 0 | C89: =SUM(C87:C88) -> 0 | D89: =SUM(D87:D88) -> 0 | E89: =SUM(E87:E88) -> 0 | F89: =SUM(F87:F88) -> 0 | G89: 0 | H89: =SUM(H87:H88) -> 0 | I89: No Mortgage
A91: RESERVES
A92: REPLACEMENT RESERVES | B92: 4800 | C92: 5400 | D92: =C92/12 -> 450 | E92: =F92/9*12 -> 4800 | F92: =G92+H92 -> 3600 | G92: 0 | H92: 3600 | I92: Increase due to age of building
A93: TOTAL RESERVES | B93: =B92 -> 4800 | C93: =C92 -> 5400 | D93: =D92 -> 450 | E93: =E92 -> 4800 | F93: =F92 -> 3600 | G93: 0 | H93: =H92 -> 3600
A95: CAPITAL EXPENDITURES
A96: LAND & IMPROVEMENTS | B96: 0 | C96: 0 | D96: =C96/12 -> 0 | E96: =F96/9*12 -> 0 | F96: =G96+H96 -> 0 | G96: 0 | H96: 0
A97: BUILDING | B97: 0 | C97: 0 | D97: 0 | E97: 0 | F97: 0 | G97: 0 | H97: 0
A98: BUILDING IMPROVEMENTS | B98: 0 | C98: 0 | D98: =C98/12 -> 0 | E98: 0 | F98: 0 | G98: 0 | H98: 0
A99: BLDG. EQUIP. FIXED | B99: 0 | C99: 0 | D99: 0 | E99: 0 | F99: 0 | G99: 0 | H99: 0
A100: BLDG. EQUIP. PORTABLE | B100: 0 | C100: 0 | D100: 0 | E100: 0 | F100: 0 | G100: 0 | H100: 0
A101: FURNISHINGS | B101: 0 | C101: 0 | D101: 0 | E101: 0 | F101: 0 | G101: 0 | H101: 0
A102: MISC. FIXED ASSETS | B102: 0 | C102: 0 | D102: 0 | E102: 0 | F102: 0 | G102: 0 | H102: 0
A103: TOTAL CAPITAL EXP. | B103: =SUM(B96:B102) -> 0 | C103: =SUM(C96:C102) -> 0 | D103: =SUM(D96:D102) -> 0 | E103: =SUM(E96:E102) -> 0 | F103: =SUM(F96:F102) -> 0 | G103: 0 | H103: =SUM(H96:H102) -> 0
A105: TOTAL EXPENDITURES | B105: =SUM(B103+B93+B89+B84+B72+B57+B50) -> 140320 | C105: 146689.2935 | D105: 12224.10779 | E105: 115811.4267 | F105: 87552.88 | G105: 5328.37 | H105: 82224.51
A107: NET INCOME (LOSS) | B107: =SUM(B22-B105) -> -16990 | C107: -13909.29347 | D107: -1159.107789 | E107: 10991.82667 | F107: 7251.89 | G107: 5429.59 | H107: 1822.3
A109: DEPRECIATION INCLUDED ABOVE | B109: =B82 -> 31630 | C109: 30280 | D109: 2523.333333 | E109: 29398.69333 | F109: 22049.02 | G109: 3857.06 | H109: 18191.96
A111: NET INCOME(LOSS) AFTER DEPRECIATION | B111: =B107+B109 -> 14640 | C111: =C107+C109 -> 16370.70653 | D111: 1364.225544 | E111: 40390.52 | F111: 29300.91 | G111: =G107+G109 -> 9286.65 | H111: 20014.26

Sheet west 40
B4: JEFFCO HOUSING CORPORATION
B5: WEST 40th
B6: FY 2017 OPERATING BUDGET
G7: On 9/30/2016 Replacement Reserves $62,318.26
F8: Actual | G8: 8 Units
B9: Budget | C9: Budget | D9: Budget | F9: YTD | G9: 3% increase over 12/31/2016 potential estimate
B10: FY 2016 | C10: FY 2017 | D10: FY 2017 | E10: FY 2016 | F10: FY 2016 | G10: unless otherwise noted
B11: ANNUAL | C11: ANNUAL | D11: Monthly | E11: 12MO Estimate | F11: at 9/30/16 | G11: Mortgage Ends July 2018
A12: OPERATING RECEIPTS
A13: RENTAL INCOME | B13: 67800 | C13: 74800 | D13: =C13/12 -> 6233.333333 | E13: =F13/9*12 -> 70100 | F13: 52575 | G13: proposed increases (aprox. 6.7% )
A15: VACANCIES | B15: -1350 | C15: -1500 | D15: -125 | E15: -2527.546667 | F15: -1895.66 | G15: 2% of Rental Income
A16: TRANSFER FROM RESERVES | B16: 8000 | C16: 16500 | D16: 1375 | E16: 0 | F16: 0 | G16: Transfer for Doors $8500. Swamp Coolers $4600. Water Heater $3000.
A17: INTEREST INCOME | B17: 20 | C17: 20 | D17: 1.666666667 | E17: 13.33333333 | F17: 10
A18: LAUNDRY INCOME | B18: 740 | C18: 600 | D18: 50 | E18: 508 | F18: 381
A19: NSF / LATE CHARGES | B19: =SUM(D19*1.03) -> 0 | C19: 0 | D19: 0 | E19: 0 | F19: 0
A20: OTHER INCOME | B20: 20 | C20: 20 | D20: 1.666666667 | E20: 154.6666667 | F20: 116 | G20: Estimate
A22: TOTAL OPERATING RECEIPTS | B22: =SUM(B13:B21) -> 75230 | C22: 90440 | D22: 7536.666667 | E22: 68248.45333 | F22: =SUM(F13:F21) -> 51186.34
A24: OPERATING EXPENDITURES
A25: ADMINISTRATIVE | B25: =B50 -> 6440 | C25: =C50 -> 6490.360133 | D25: =D50 -> 540.8633444 | E25: =E50 -> 5654.16 | F25: =F50 -> 4195.62
A26: OPERATING | B26: =B57 -> 8070 | C26: =C57 -> 7140 | D26: =D57 -> 595 | E26: =E57 -> 6778.893333 | F26: =F57 -> 5432.17
A27: MAINTENANCE | B27: =B72 -> 33450 | C27: =C72 -> 46030.10347 | D27: =D72 -> 3835.841956 | E27: =E72 -> 29072.96 | F27: =F72 -> 21804.72
A28: GENERAL | B28: =B84 -> 18740 | C28: =C84 -> 18840 | D28: =D84 -> 1570 | E28: =E84 -> 16511.44 | F28: =F84 -> 13054.83
A29: FINANCING | B29: =B89 -> 23100 | C29: =C89 -> 23100 | D29: =D89 -> 1925 | E29: =E89 -> 23094.6 | F29: =F89 -> 17320.95
A30: RESERVES | B30: =B92 -> 3600 | C30: =C92 -> 3600 | D30: =D92 -> 300 | E30: =E93 -> 3600 | F30: =F93 -> 2700
A31: CAPITAL EXPENSE | B31: =B103 -> 0 | C31: =C103 -> 3000 | D31: =D103 -> 250 | E31: =E103 -> 3000 | F31: =F103 -> 2250
A32: TOTAL OPERATING EXPENSE | B32: =SUM(B25:B31) -> 93400 | C32: =SUM(C25:C31) -> 108200.4636 | D32: =SUM(D25:D31) -> 9016.7053 | E32: =SUM(E25:E31) -> 87712.05333 | F32: =SUM(F25:F31) -> 66758.29
A33: NET INCOME (LOSS) | B33: =SUM(B22-B32) -> -18170 | C33: =SUM(C22-C32) -> -17760.4636 | D33: =SUM(D22-D32) -> -1480.038633 | E33: =SUM(E22-E32) -> -19463.6 | F33: =SUM(F22-F32) -> -15571.95
A36: ADMINISTRATIVE EXPENDITURES
A37: OFFICE SALARIES | B37: =SUM(D37*1.03) -> 0 | C37: =E37+E37*3% -> 0 | D37: =C37/12 -> 0 | E37: =F37/9*12 -> 0 | F37: 0
C38: 0
C39: 0
A40: OFFICE SUPPLIES | B40: 100 | C40: 150 | D40: 12.5 | E40: 144.6666667 | F40: 108.5
A41: DUES & MTG EXPENSE | B41: 30 | C41: 30 | D41: 2.5 | E41: 25.77333333 | F41: 19.33
A42: CLIENT VERIFICATION SERV. | B42: 0 | C42: 110 | D42: =C42/12 -> 9.166666667 | E42: =F42/9*12 -> 100.9333333 | F42: 75.7
A43: MANAGEMENT FEE | B43: 3360 | C43: 3690 | D43: 307.5 | E43: 3411.733333 | F43: 2558.8 | G43: Based on 5% of total income minus interest & transfer from reserves
A44: LEGAL | B44: 420 | C44: 430 | D44: 35.83333333 | E44: 0 | F44: 0 | G44: One legal $245 + $50 & one sheriff fee $135
A45: ACCOUNTING/AUDIT | B45: 950 | C45: 930 | D45: 77.5 | E45: 900 | F45: 630
A46: TELEPHONE | B46: 120 | C46: 200 | D46: 16.66666667 | E46: 147.0533333 | F46: 110.29 | G46: increase for tablets
A47: COMPUTER EXPENSE | B47: 560 | C47: 50.36013333 | D47: 4.196677778 | E47: 48.89333333 | F47: 36.67
A48: MISC. ADMIN. EXPENSE | B48: 570 | C48: 560 | D48: 46.66666667 | E48: 546.0533333 | F48: 409.54
A49: TRAVEL & TRAINING | B49: 330 | C49: 340 | D49: 28.33333333 | E49: 329.0533333 | F49: 246.79
A50: TOTAL ADMINISTRATIVE | B50: =SUM(B37:B49) -> 6440 | C50: =SUM(C37:C49) -> 6490.360133 | D50: =SUM(D37:D49) -> 540.8633444 | E50: =SUM(E37:E49) -> 5654.16 | F50: =SUM(F37:F49) -> 4195.62
A52: OPERATING EXPENDITURES
A53: ELECTRIC | B53: 410 | C53: 400 | D53: =C53/12 -> 33.33333333 | E53: =F53/9*12 -> 383.16 | F53: 287.37 | G53: 3%
A54: WATER | B54: 2200 | C54: 2060 | D54: 171.6666667 | E54: 1910.613333 | F54: 1432.96 | G54: 8%
A55: GAS | B55: 4010 | C55: 3220 | D55: 268.3333333 | E55: 3093.12 | F55: 2319.84 | G55: 4%
A56: SEWER | B56: 1450 | C56: 1460 | D56: 121.6666667 | E56: 1392 | F56: 1392 | G56: 5% - Annual
A57: TOTAL OPERATING | B57: =SUM(B53:B56) -> 8070 | C57: =SUM(C53:C56) -> 7140 | D57: =SUM(D53:D56) -> 595 | E57: =SUM(E53:E56) -> 6778.893333 | F57: =SUM(F53:F56) -> 5432.17
A59: MAINTENANCE EXPENDITURES
A60: JANITORIAL CONTRACT & SUPPLIES | B60: 740 | C60: 850 | D60: =C60/12 -> 70.83333333 | E60: =F60/9*12 -> 820 | F60: 615 | G60: Laundry Cleaning $40 per month($480. started mid 2015) & unit ($260)
A61: EXTERMINATING CONTRACT | B61: 1500 | C61: 1390 | D61: 115.8333333 | E61: 1604 | F61: 1203 | G61: Contract $99 mo $1188. year plus $200 for extra services.
A62: TRASH REMOVAL | B62: 1250 | C62: =E62+E62*4% -> 1400.103467 | D62: 116.6752889 | E62: 1346.253333 | F62: 1009.69 | G62: 4%
A63: GROUNDS CONTRACT | B63: 3780 | C63: 3690 | D63: 307.5 | E63: 3893.333333 | F63: 2920 | G63: 3%+ 2016 rate $75. week April-Oct (30wks=$2250.0.) + $1000. cleanup and maintenance & $300 sprinklers
A64: REPAIR MATERIALS | B64: 3300 | C64: 13960 | D64: 1163.333333 | E64: 3059.04 | F64: 2294.28 | G64: 3% Paint Doors/chauk window $2000 & Replace Doors 17@500.ea (8500.00
A65: REPAIR CONTRACT | B65: 6100 | C65: 5790 | D65: 482.5 | E65: 2619 | F65: 1964.25 | G65: 3% Electrical work $1600. & Mailboxes $1100. & Restripe parking lot $300.00
A66: CARPET & VINYL/PLANK | B66: 2700 | C66: 5250 | D66: 437.5 | E66: 5098.04 | F66: 3823.53 | G66: One unit carpet/vinyl or vinyl plank
A67: APPLIANCES | B67: 4600 | C67: 6300 | D67: 525 | E67: 3454.626667 | F67: 2590.97 | G67: One Range $400. One Fridge $600 & 4 Swamp Coolers @ $1,150. ea ($4,600) & One Dryer $700
A68: REPAIR PAYROLL | B68: 7740 | C68: 6060 | D68: =C68/12 -> 505 | E68: =F68/9*12 -> 5878.666667 | F68: 4409
A69: SNOW REMOVAL | B69: 1740 | C69: 1340 | D69: 111.6666667 | E69: 1300 | F69: 975 | G69: 6 yr average x 10 snow days
A70: CABINETS & FURNITURE | B70: 0 | C70: 0 | D70: 0 | E70: 0 | F70: 0
A71: SECURITY | B71: 0 | C71: 0 | D71: 0 | E71: 0 | F71: 0
A72: TOTAL MAINTENANCE | B72: =SUM(B60:B71) -> 33450 | C72: =SUM(C60:C71) -> 46030.10347 | D72: 3835.841956 | E72: 29072.96 | F72: 21804.72
A74: GENERAL
A75: PAYROLL TAXES | B75: 590 | C75: 460 | D75: =C75/12 -> 38.33333333 | E75: =F75/9*12 -> 57.22666667 | F75: 42.92 | G75: 7.65% of Payroll
A76: PROP & LIAB. INSURANCE | B76: 2140 | C76: 2770 | D76: 230.8333333 | E76: 2686 | F76: 2685.75 | G76: 3.5% for General Liability No Increase in Property Liability
A77: EMPLOYEE BENEFITS | B77: 2320 | C77: 1820 | D77: 151.6666667 | E77: 179.5333333 | F77: 134.65 | G77: 30.% of payroll - Health, Dental, CCOERA
A78: WORKMAN'S COMPENSATION | B78: 230 | C78: 180 | D78: 15 | E78: 793.9866667 | F78: 595.49 | G78: 3.% of payroll
A79: EMPLOYEE COMPENSATIONS | B79: 230 | C79: 180 | D79: 15 | E79: 0 | F79: 0 | G79: 3.% of payroll
A80: BAD DEBT LOSS | B80: 50 | C80: 50 | D80: 4.166666667 | E80: 0 | F80: 0
A81: LOSS ON DISPOSAL FIXED ASSET | B81: 300 | C81: 480 | D81: 40 | E81: 460.88 | F81: 345.66 | G81: estimate
A82: DEPRECIATION | B82: 12880 | C82: 12900 | D82: 1075 | E82: 12333.81333 | F82: 9250.36
A84: TOTAL GENERAL EXPENSE | B84: =SUM(B75:B83) -> 18740 | C84: =SUM(C75:C83) -> 18840 | D84: =SUM(D75:D83) -> 1570 | E84: 16511.44 | F84: 13054.83
A86: FINANCING
A87: INT ON MORTGAGE PAYABLE | B87: 2240 | C87: 1080 | D87: =C87/12 -> 90 | E87: =F87/9*12 -> 2378.12 | F87: 1783.59 | G87: Amortization Schedule
A88: MORTGAGE | B88: 20860 | C88: 22020 | D88: 1835 | E88: 20716.48 | F88: 15537.36
A89: TOTAL FINANCING | B89: =SUM(B87:B88) -> 23100 | C89: =SUM(C87:C88) -> 23100 | D89: =SUM(D87:D88) -> 1925 | E89: =SUM(E87:E88) -> 23094.6 | F89: =SUM(F87:F88) -> 17320.95
A91: RESERVES
A92: REPLACEMENT RESERVES | B92: 3600 | C92: 3600 | D92: =C92/12 -> 300 | E92: =F92/9*12 -> 3600 | F92: 2700
A93: TOTAL RESERVES | B93: =B92 -> 3600 | C93: =C92 -> 3600 | D93: =D92 -> 300 | E93: =E92 -> 3600 | F93: =F92 -> 2700
A95: CAPITAL EXPENDITURES
A96: LAND & IMPROVEMENTS | B96: 0 | C96: 0 | D96: =C96/12 -> 0 | E96: =F96/9*12 -> 0 | F96: 0
A97: BUILDING | B97: 0 | C97: 0 | D97: 0 | E97: 0 | F97: 0
A98: BUILDING IMPROVEMENTS | B98: 0 | C98: 0 | D98: =C98/12 -> 0 | E98: 0 | F98: 0
A99: BUILDING EQUIP FIXED | B99: 0 | C99: 3000 | D99: 250 | E99: 3000 | F99: 2250 | G99: Water Heater
A100: BLDG. EQUIP. PORTABLE | B100: 0 | C100: 0 | D100: 0 | E100: 0 | F100: 0
A101: FURNISHINGS | B101: 0 | C101: 0 | D101: 0 | E101: 0 | F101: 0
A102: MISC. FIXED ASSETS | B102: 0 | C102: 0 | D102: 0 | E102: 0 | F102: 0
A103: TOTAL CAPITAL EXP. | B103: =SUM(B96:B102) -> 0 | C103: =SUM(C96:C102) -> 3000 | D103: =SUM(D96:D102) -> 250 | E103: =SUM(E96:E102) -> 3000 | F103: =SUM(F96:F102) -> 2250
A105: TOTAL EXPENDITURES | B105: =SUM(B103+B93+B89+B84+B72+B57+B50) -> 93400 | C105: =SUM(C103+C93+C89+C84+C72+C57+C50) -> 108200.4636 | D105: =SUM(D103+D93+D89+D84+D72+D57+D50) -> 9016.7053 | E105: =SUM(E103+E93+E89+E84+E72+E57+E50) -> 87712.05333 | F105: =SUM(F103+F93+F89+F84+F72+F57+F50) -> 66758.29
A107: NET INCOME (LOSS) | B107: =SUM(B22-B105) -> -18170 | C107: =SUM(C22-C105) -> -17760.4636 | D107: =SUM(D22-D105) -> -1480.038633 | E107: =SUM(E22-E105) -> -19463.6 | F107: =SUM(F22-F105) -> -15571.95
A109: DEPRECIATION INCLUDED ABOVE | B109: =B82 -> 12880 | C109: =C82 -> 12900 | D109: =D82 -> 1075 | E109: =E82 -> 12333.81333 | F109: =F82 -> 9250.36
A111: NET INCOME(LOSS) AFTER DEPRECIATION | B111: =B107+B109 -> -5290 | C111: =C107+C109 -> -4860.4636 | D111: -405.0386333 | E111: -7129.786667 | F111: -6321.59

Sheet WRP
B4: JEFFCO HOUSING CORPORATION
B5: WHEAT RIDGE PARK
B6: FY 2017 OPERATING BUDGET
G7: On 9/30/2016 Replacement Reserves $50,887.61
F8: Actual | G8: 20 Units
B9: Budget | C9: Budget | D9: Budget | F9: YTD | G9: 3% increase over 12/31/2016 potential estimate
B10: FY 2016 | C10: FY 2017 | D10: FY 2017 | E10: FY 2016 | F10: FY 2016 | G10: unless otherwise noted
B11: ANNUAL | C11: ANNUAL | D11: Monthly | E11: 12MO Estimate | F11: at 9/30/16 | G11: Mortgage Ends June 2017
A12: OPERATING RECEIPTS
A13: RENTAL INCOME | B13: 159130 | C13: 179580 | D13: =C13/12 -> 14965 | E13: =F13/9*12 -> 165088 | F13: 123816 | G13: proposed increases (aprox. 8.75% )
A15: VACANCIES | B15: -3180 | C15: -3590 | D15: -299.1666667 | E15: -2261.866667 | F15: -1696.4 | G15: 2% of Rental Income
A16: TRANSFER FROM RESERVES | B16: 4000 | C16: 0 | D16: 0 | E16: 0 | F16: 0
A17: INTEREST INCOME | B17: 10 | C17: 10 | D17: 0.8333333333 | E17: 10.37333333 | F17: 7.78 | G17: Shared with 46th
A18: LAUNDRY INCOME | B18: 1730 | C18: 2100 | D18: 175 | E18: 2036.733333 | F18: 1527.55
A19: NSF / LATE CHARGES | B19: 570 | C19: 230 | D19: 19.16666667 | E19: 224 | F19: 168
A20: MISC INCOME | B20: 750 | C20: 400 | D20: 33.33333333 | E20: 700.44 | F20: 525.33 | G20: Estimate
A22: TOTAL OPERATING RECEIPTS | B22: =SUM(B13:B21) -> 163010 | C22: =SUM(C13:C21) -> 178730 | D22: =SUM(D13:D21) -> 14894.16667 | E22: 165797.68 | F22: 124348.26
A24: OPERATING EXPENDITURES
A25: ADMINISTRATIVE | B25: =B50 -> 23440 | C25: =C50 -> 23840 | D25: =D50 -> 1986.666667 | E25: =E50 -> 22182.50667 | F25: =F50 -> 16822.88
A26: OPERATING | B26: =B57 -> 16010 | C26: =C57 -> 15160 | D26: =D57 -> 1263.333333 | E26: =E57 -> 14386.62667 | F26: =F57 -> 11426.28
A27: MAINTENANCE | B27: =B72 -> 49660 | C27: =C72 -> 66390 | D27: =D72 -> 5532.5 | E27: =E72 -> 44444.58667 | F27: =F72 -> 33333.44
A28: GENERAL | B28: =B84 -> 52440 | C28: =C84 -> 52470 | D28: =D84 -> 4372.5 | E28: =E84 -> 51681.45333 | F28: =F84 -> 40251.71
A29: FINANCING | B29: =B89 -> 43310 | C29: =C89 -> 21370 | D29: =D89 -> 1780.833333 | E29: =E89 -> 43310 | F29: =F89 -> 36092.5
A30: RESERVES | B30: =B92 -> 4800 | C30: =C92 -> 4800 | D30: =D92 -> 400 | E30: =E93 -> 4800 | F30: =F93 -> 3600
A31: CAPITAL EXPENSE | B31: =B103 -> 0 | C31: =C103 -> 0 | D31: =D103 -> 0 | E31: =E103 -> 0 | F31: =F103 -> 0
A32: TOTAL OPERATING EXPENSE | B32: =SUM(B25:B31) -> 189660 | C32: =SUM(C25:C31) -> 184030 | D32: =SUM(D25:D31) -> 15335.83333 | E32: =SUM(E25:E31) -> 180805.1733 | F32: =SUM(F25:F31) -> 141526.81
A33: NET INCOME (LOSS) | B33: =SUM(B22-B32) -> -26650 | C33: =SUM(C22-C32) -> -5300 | D33: =SUM(D22-D32) -> -441.6666667 | E33: =SUM(E22-E32) -> -15007.49333 | F33: =SUM(F22-F32) -> -17178.55
A36: ADMINISTRATIVE EXPENDITURES
A37: OFFICE SALARIES | B37: 9080 | C37: 9220 | D37: =C37/12 -> 768.3333333 | E37: =F37/9*12 -> 8952.013333 | F37: 6714.01
A40: OFFICE SUPPLIES | B40: 230 | C40: 280 | D40: 23.33333333 | E40: 275.1066667 | F40: 206.33
A41: DUES & MTG EXPENSE | B41: 70 | C41: 130 | D41: 10.83333333 | E41: 120 | F41: 90 | G41: Board Meetings & CPM dues -Mike Hunter
A42: CLIENT VERIFICATION SERVICES | B42: 70 | C42: 180 | D42: 15 | E42: =F42/9*12 -> 121.3333333 | F42: 91
A43: MANAGEMENT FEE | B43: 7950 | C43: 8940 | D43: 745 | E43: 8289.333333 | F43: 6217 | G43: Based on 5% of total income minus interest
A44: LEGAL | B44: 420 | C44: 430 | D44: 35.83333333 | E44: 0 | F44: 0 | G44: One legal $245 + $50 & one sheriff fee $135
A45: ACCOUNTING/AUDIT | B45: 2370 | C45: 2120 | D45: 176.6666667 | E45: 2062 | F45: 1732.5
A46: TELEPHONE | B46: 760 | C46: 1000 | D46: 83.33333333 | E46: 873.4533333 | F46: 655.09 | G46: increase for tablets
A47: COMPUTER EXPENSE | B47: 1120 | C47: 100 | D47: 8.333333333 | E47: 92.42666667 | F47: 69.32
A48: MISC. ADMIN. EXPENSE | B48: 570 | C48: 600 | D48: 50 | E48: 586.6666667 | F48: 440 | G48: Bank Fees & Maintenance t-shirts
A49: TRAVEL & TRAINING | B49: 800 | C49: 840 | D49: 70 | E49: 810.1733333 | F49: 607.63
A50: TOTAL ADMINISTRATIVE | B50: =SUM(B37:B49) -> 23440 | C50: =SUM(C37:C49) -> 23840 | D50: =SUM(D37:D49) -> 1986.666667 | E50: =SUM(E37:E49) -> 22182.50667 | F50: =SUM(F37:F49) -> 16822.88
A52: OPERATING EXPENDITURES
A53: ELECTRIC | B53: 3170 | C53: 2020 | D53: =C53/12 -> 168.3333333 | E53: =F53/9*12 -> 1958.4 | F53: 1468.8 | G53: 3%
A54: WATER | B54: 4410 | C54: 4860 | D54: 405 | E54: 4500 | F54: 3111.31 | G54: 8%
A55: GAS | B55: 4940 | C55: 4500 | D55: 375 | E55: 4328.226667 | F55: 3246.17 | G55: 4%
A56: SEWER | B56: 3490 | C56: 3780 | D56: 315 | E56: 3600 | F56: 3600 | G56: 5%
A57: TOTAL OPERATING | B57: =SUM(B53:B56) -> 16010 | C57: =SUM(C53:C56) -> 15160 | D57: =SUM(D53:D56) -> 1263.333333 | E57: =SUM(E53:E56) -> 14386.62667 | F57: =SUM(F53:F56) -> 11426.28
A59: MAINTENANCE EXPENDITURES
A60: JANITORIAL CONTRACT | B60: 1570 | C60: 1650 | D60: =C60/12 -> 137.5 | E60: =F60/9*12 -> 1600 | F60: 1200 | G60: Water Extraction, Carpet Cleaning, Turnover,
A61: EXTERMINATING CONTRACT | B61: 2520 | C61: 2000 | D61: 166.6666667 | E61: 2000 | F61: 1500 | G61: New contract - $129 month (1548 yr) plus $450 for Extras...Wasps, snakes &spiders
A62: TRASH REMOVAL | B62: 2840 | C62: 2970 | D62: 247.5 | E62: 2553.72 | F62: 1915.29 | G62: 4% & Contract $212.81 m($2553.72.yr)- plus one rolloff $300
A63: GROUNDS CONTRACT | B63: 4360 | C63: 8760 | D63: 730 | E63: 6073.333333 | F63: 4555 | G63: Lndscp$1,000 Irrigate $2000. & $120wk April-Oct (30wks=$3600)plus 1300cleanup 600sprinklers
A64: REPAIR MATERIALS | B64: 9580 | C64: 10770 | D64: 897.5 | E64: 6578.426667 | F64: 4933.82 | G64: 3% & unit entry doors @$400 ea x 10 (4000.)
A65: REPAIR CONTRACT COSTS | B65: 11390 | C65: 11360 | D65: 946.6666667 | E65: 11277.33333 | F65: 8458 | G65: 3%& Boiler cleaning @$250 each ($750) & Ext. Paint/Vinyl $3000,minus $4k for 2016 plumbing issues
A66: CARPET & VINYL/PLANK | B66: 3000 | C66: 3090 | D66: 257.5 | E66: 1932.44 | F66: 1449.33 | G66: 2 units carpet/vinyl $1,350 each and two entries $150. each
A67: APPLIANCES | B67: 2160 | C67: 6360 | D67: 530 | E67: 3326.666667 | F67: 2495 | G67: 2 Refrigerator $500., 1 Range $465, 2 Dishwasher $345. & 3 Washers/3Dryers @$700 ea. ($4200)
A68: REPAIR PAYROLL | B68: 10660 | C68: 8100 | D68: 675 | E68: 7842.666667 | F68: 5882
A69: SNOW REMOVAL | B69: 1580 | C69: 1330 | D69: 110.8333333 | E69: 1260 | F69: 945 | G69: 6 yr average x 10 snow days
A70: CABINETS & FURNITURE | B70: 0 | C70: 6000 | D70: 500 | E70: 0 | F70: 0 | G70: 2 units Cabinets $3000 per unit
A71: SECURITY | B71: 0 | C71: 4000 | D71: =C71/12 -> 333.3333333 | E71: =F71/9*12 -> 0 | F71: 0 | G71: Camera System
A72: TOTAL MAINTENANCE | B72: =SUM(B60:B71) -> 49660 | C72: =SUM(C60:C71) -> 66390 | D72: =SUM(D60:D71) -> 5532.5 | E72: 44444.58667 | F72: 33333.44
A74: GENERAL
A75: PAYROLL TAXES | B75: 1510 | C75: 1330 | D75: =C75/12 -> 110.8333333 | E75: =F75/9*12 -> 1314.373333 | F75: 985.78 | G75: 7.65% of Payroll
A76: PROP & LIAB. INSURANCE | B76: 11070 | C76: 12900 | D76: 1075 | E76: 12461 | F76: 12461.01 | G76: 3.5% for General Liability No Increase in Property Liability
A77: EMPLOYEE BENEFITS | B77: 5920 | C77: 5200 | D77: 433.3333333 | E77: 4150.906667 | F77: 3113.18 | G77: 30.% of payroll - Health, Dental, CCOERA
A78: WORKMAN'S COMPENSATION | B78: 590 | C78: 520 | D78: 43.33333333 | E78: 1589.306667 | F78: 1191.98 | G78: 3.% of payroll
A79: EMPLOYEE COMPENSATION | B79: 590 | C79: 520 | D79: 43.33333333 | E79: 0 | F79: 0 | G79: 3.% of payroll
A80: BAD DEBT LOSS | B80: 650 | C80: 1000 | D80: 83.33333333 | E80: 1140 | F80: 1139 | G80: estimate
A81: LOSS ON DISPOSAL FIXED ASSET | B81: 1000 | C81: 1000 | D81: 83.33333333 | E81: 825.8666667 | F81: 619.4 | G81: estimate
A82: DEPRECIATION | B82: 31110 | C82: 30000 | D82: 2500 | E82: 30200 | F82: 20741.36 | G82: Lower due to appliances & carpet/vinyl taken out of service
A84: TOTAL GENERAL EXPENSE | B84: =SUM(B75:B83) -> 52440 | C84: =SUM(C75:C83) -> 52470 | D84: =SUM(D75:D83) -> 4372.5 | E84: 51681.45333 | F84: 40251.71
A86: FINANCING
A87: INT ON MORTGAGE PAYABLE | B87: 1650 | C87: 230 | D87: =C87/12 -> 19.16666667 | E87: 1650 | F87: 1478.68 | G87: Mortgage Ends 6/30/2017
A88: MORTGAGE | B88: 41660 | C88: 21140 | D88: =C88/12 -> 1761.666667 | E88: 41660 | F88: 34613.82
A89: TOTAL FINANCING | B89: =SUM(B87:B88) -> 43310 | C89: =SUM(C87:C88) -> 21370 | D89: =SUM(D87:D88) -> 1780.833333 | E89: =SUM(E87:E88) -> 43310 | F89: =SUM(F87:F88) -> 36092.5
A91: RESERVES
A92: REPLACEMENT RESERVES | B92: 4800 | C92: 4800 | D92: =C92/12 -> 400 | E92: =F92/9*12 -> 4800 | F92: 3600
A93: TOTAL RESERVES | B93: =B92 -> 4800 | C93: =C92 -> 4800 | D93: =D92 -> 400 | E93: =E92 -> 4800 | F93: =F92 -> 3600
A95: CAPITAL EXPENDITURES
A96: LAND & IMPROVEMENTS | B96: 0 | C96: 0 | D96: =C96/12 -> 0 | E96: 0 | F96: 0
A97: BUILDING | B97: 0 | C97: 0 | D97: 0 | E97: 0 | F97: 0
A98: BUILDING IMPROVEMENTS | B98: 0 | C98: 0 | D98: =C98/12 -> 0 | E98: 0 | F98: 0
A99: BLDG. EQUIP. FIXED | B99: 0 | C99: 0 | D99: 0 | E99: 0 | F99: 0
A100: BLDG. EQUIP. PORTABLE | B100: 0 | C100: 0 | D100: 0 | E100: =F100/9*12 -> 0 | F100: 0
A101: FURNISHINGS | B101: 0 | C101: 0 | D101: 0 | E101: 0 | F101: 0
A102: MISC. FIXED ASSETS | B102: 0 | C102: 0 | D102: 0 | E102: 0 | F102: 0
A103: TOTAL CAPITAL EXP. | B103: =SUM(B96:B102) -> 0 | C103: =SUM(C96:C102) -> 0 | D103: =SUM(D96:D102) -> 0 | E103: =SUM(E96:E102) -> 0 | F103: =SUM(F96:F102) -> 0
A105: TOTAL EXPENDITURES | B105: =SUM(B103+B93+B89+B84+B72+B57+B50) -> 189660 | C105: =SUM(C103+C93+C89+C84+C72+C57+C50) -> 184030 | D105: =SUM(D103+D93+D89+D84+D72+D57+D50) -> 15335.83333 | E105: =SUM(E103+E93+E89+E84+E72+E57+E50) -> 180805.1733 | F105: =SUM(F103+F93+F89+F84+F72+F57+F50) -> 141526.81
A107: NET INCOME (LOSS) | B107: =SUM(B22-B105) -> -26650 | C107: =SUM(C22-C105) -> -5300 | D107: =SUM(D22-D105) -> -441.6666667 | E107: =SUM(E22-E105) -> -15007.49333 | F107: =SUM(F22-F105) -> -17178.55
A109: DEPRECIATION INCLUDED ABOVE | B109: =B82 -> 31110 | C109: =C82 -> 30000 | D109: =D82 -> 2500 | E109: =E82 -> 30200 | F109: =F82 -> 20741.36
A111: NET INCOME(LOSS) AFTER DEPRECIATION | B111: =B107+B109 -> 4460 | C111: =C107+C109 -> 24700 | D111: 2058.333333 | E111: 15192.50667 | F111: 3562.81

Sheet Hilltop
B4: JEFFCO HOUSING CORPORATION
B5: HILLTOP
B6: FY 2017 OPERATING BUDGET
G7: On 9/30/2016 Replacement Reserves $62,326.99
F8: Actual | G8: 33 Units
B9: Budget | C9: Budget | D9: Budget | F9: YTD | G9: 3% increase over 12/31/2016 potential estimate
B10: FY 2016 | C10: FY 2017 | D10: FY 2017 | E10: FY 2016 | F10: FY 2016 | G10: unless otherwise noted
B11: ANNUAL | C11: ANNUAL | D11: Monthly | E11: 12MO Estimate | F11: at 9/30/16 | G11: Mortgage Ends June 2019
A12: OPERATING RECEIPTS
A13: RENTAL INCOME | B13: 296190 | C13: 314141 | D13: =C13/12 -> 26178.41667 | E13: 302741 | F13: 226212 | G13: proposed increases (aprox. 3.75% )
A14: PET RENT | B14: 210 | C14: 0 | D14: 0 | E14: =F14/9*12 -> 45.33333333 | F14: 34 | G14: Now incorporated with the rent.
A15: VACANCIES | B15: -5920 | C15: -6280 | D15: -523.3333333 | E15: -4018.413333 | F15: -3013.81 | G15: 2% of Rental Income
A16: TRANSFER FROM RESERVES | B16: 8000 | C16: 12000 | D16: =C16/12 -> 1000 | E16: =F16/9*12 -> 0 | F16: 0 | G16: Transfer for 1/2 of Rooftop A/C Units
A17: INTEREST INCOME | B17: 20 | C17: 20 | D17: 1.666666667 | E17: 13.41333333 | F17: 10.06
A18: LAUNDRY INCOME | B18: 620 | C18: 470 | D18: 39.16666667 | E18: 455.2533333 | F18: 341.44
A19: NSF / LATE CHARGES | B19: 390 | C19: 390 | D19: 32.5 | E19: 566.6666667 | F19: 425 | G19: Estimate
A20: OTHER INCOME | B20: 100 | C20: 100 | D20: 8.333333333 | E20: 642.4266667 | F20: 481.82 | G20: Estimate
A22: TOTAL OPERATING RECEIPTS | B22: =SUM(B13:B21) -> 299610 | C22: =SUM(C13:C21) -> 320841 | D22: =SUM(D13:D21) -> 26736.75 | E22: 300445.68 | F22: 224490.51
A24: OPERATING EXPENDITURES
A25: ADMINISTRATIVE | B25: =B50 -> 36050 | C25: =C50 -> 35590.3476 | D25: =D50 -> 2965.8623 | E25: =E50 -> 33977.13333 | F25: =F50 -> 25770.1
A26: OPERATING | B26: =B57 -> 17180 | C26: =C57 -> 17270 | D26: =D57 -> 1439.166667 | E26: =E57 -> 16296.46667 | F26: =F57 -> 13657.85
A27: MAINTENANCE | B27: =B72 -> 75410 | C27: =C72 -> 67730 | D27: =D72 -> 5644.166667 | E27: =E72 -> 90172.78667 | F27: =F72 -> 67629.59
A28: GENERAL | B28: =B84 -> 88010 | C28: =C84 -> 86470 | D28: =D84 -> 7205.833333 | E28: =E84 -> 85653.25333 | F28: =F84 -> 66336.06
A29: FINANCING | B29: =B89 -> 130060 | C29: =C89 -> 130060 | D29: =D89 -> 10838.33333 | E29: =E89 -> 130060 | F29: =F89 -> 108379.5
A30: RESERVES | B30: =B92 -> 3600 | C30: =C92 -> 4800 | D30: =D93 -> 400 | E30: =E93 -> 3600 | F30: =F93 -> 2700
A31: CAPITAL EXPENSE | B31: =B103 -> 22700 | C31: =C103 -> 31500 | D31: =D103 -> 2625 | E31: =E103 -> 7180 | F31: =F103 -> 26946
A32: TOTAL OPERATING EXPENSE | B32: =SUM(B25:B31) -> 373010 | C32: =SUM(C25:C31) -> 373420.3476 | D32: =SUM(D25:D31) -> 31118.3623 | E32: =SUM(E25:E31) -> 366939.64 | F32: =SUM(F25:F31) -> 311419.1
A33: NET INCOME (LOSS) | B33: =SUM(B22-B32) -> -73400 | C33: =SUM(C22-C32) -> -52579.3476 | D33: =SUM(D22-D32) -> -4381.6123 | E33: =SUM(E22-E32) -> -66493.96 | F33: =SUM(F22-F32) -> -86928.59
A36: ADMINISTRATIVE EXPENDITURES
A37: OFFICE SALARIES | B37: 12320 | C37: 12740 | D37: =C37/12 -> 1061.666667 | E37: =F37/9*12 -> 12370.66667 | F37: 9278
A40: OFFICE SUPPLIES | B40: 160 | C40: 410 | D40: =C40/12 -> 34.16666667 | E40: =F40/9*12 -> 398.9466667 | F40: 299.21
A41: DUES & MTG EXPENSE | B41: 120 | C41: 110 | D41: 9.166666667 | E41: 103.12 | F41: 77.34
A42: CLIENT VERIFICATION SERVICES | B42: 70 | C42: 120 | D42: 10 | E42: 108.7333333 | F42: 81.55
A43: MANAGEMENT FEE | B43: 14580 | C43: 15440 | D43: 1286.666667 | E43: 14965.4 | F43: 11224.05 | G43: Based on 5% of total income minus interest & transfer from reserves
A44: LEGAL | B44: 420 | C44: 430 | D44: 35.83333333 | E44: 0 | F44: 0 | G44: One legal $245 + $50 & one sheriff fee $135
A45: ACCOUNTING/AUDIT | B45: 3590 | C45: 3290 | D45: 274.1666667 | E45: 3187 | F45: 2677.5
A46: TELEPHONE | B46: 1300 | C46: 1400 | D46: 116.6666667 | E46: 1242.506667 | F46: 931.88 | G46: increase for tablets
A47: COMPUTER EXPENSE | B47: 1670 | C47: 90 | D47: 7.5 | E47: 86.85333333 | F47: 65.14
A48: MISC. ADMIN. EXPENSE | B48: 980 | C48: =E48+E48*3% -> 1010.3476 | D48: 84.19563333 | E48: 980.92 | F48: 735.69
A49: TRAVEL & TRAINING | B49: 840 | C49: 550 | D49: 45.83333333 | E49: 532.9866667 | F49: 399.74
A50: TOTAL ADMINISTRATIVE | B50: =SUM(B37:B49) -> 36050 | C50: =SUM(C37:C49) -> 35590.3476 | D50: =SUM(D37:D49) -> 2965.8623 | E50: =SUM(E37:E49) -> 33977.13333 | F50: =SUM(F37:F49) -> 25770.1
A52: OPERATING EXPENDITURES
A53: ELECTRIC | B53: 2930 | C53: 2970 | D53: =C53/12 -> 247.5 | E53: =F53/9*12 -> 2881.666667 | F53: 2161.25 | G53: 3%
A54: WATER | B54: 7440 | C54: 7710 | D54: 642.5 | E54: 7136 | F54: 5352 | G54: 8%
A55: GAS | B55: 700 | C55: 560 | D55: 46.66666667 | E55: 536.8 | F55: 402.6 | G55: 4%
A56: SEWER | B56: 6110 | C56: 6030 | D56: 502.5 | E56: 5742 | F56: 5742 | G56: 5% - Annual
A57: TOTAL OPERATING | B57: =SUM(B53:B56) -> 17180 | C57: =SUM(C53:C56) -> 17270 | D57: =SUM(D53:D56) -> 1439.166667 | E57: =SUM(E53:E56) -> 16296.46667 | F57: =SUM(F53:F56) -> 13657.85
A59: MAINTENANCE EXPENDITURES
A60: JANITORIAL CONTRACT & SUPPLIES | B60: 2880 | C60: 2890 | D60: =C60/12 -> 240.8333333 | E60: =F60/9*12 -> 3933.333333 | F60: 2950 | G60: 3% & Laundry cleaning $150month($1800yr) & $1000 for turnover
A61: EXTERMINATING CONTRACT | B61: 500 | C61: 1190 | D61: 99.16666667 | E61: 1129.333333 | F61: 847 | G61: New contract - $99 month (1188 yr)
A62: TRASH REMOVAL | B62: 3670 | C62: 3350 | D62: 279.1666667 | E62: 3217.333333 | F62: 2413 | G62: 4%
A63: GROUNDS CONTRACT | B63: 5790 | C63: 5820 | D63: 485 | E63: 10503.33333 | F63: 7877.5 | G63: 3% & $150wk Apl-Oct(30wks=$4500)+ 1000.cleanup1140sprinklers 2500 trees
A64: REPAIR MATERIALS | B64: 11340 | C64: 10150 | D64: 845.8333333 | E64: 9849.853333 | F64: 7387.39
A65: REPAIR CONTRACT | B65: 20750 | C65: 15860 | D65: 1321.666667 | E65: 36127.61333 | F65: 27095.71 | G65: 3% Lighting work $1500. Deck upgrades $2000. minus Aprox $15k of 2016 amount is Colo Cus Trim
A66: CARPET & VINYL/PLANK | B66: 4500 | C66: 4500 | D66: 375 | E66: 10852.78667 | F66: 8139.59 | G66: 3 units carpet/vinyl @ $1500 ea
A67: APPLIANCES | B67: 10620 | C67: 4230 | D67: 352.5 | E67: 3497.333333 | F67: 2623 | G67: 2 Refrigerators ($570ea), 2 Ranges ($460ea), 2 Dishwashers ($385ea) 1 Washers/1Dryers $700 ea
A68: REPAIR PAYROLL | B68: 12440 | C68: 8620 | D68: 718.3333333 | E68: 8361.866667 | F68: 6271.4
A69: SNOW REMOVAL | B69: 2920 | C69: 3620 | D69: 301.6666667 | E69: 2700 | F69: 2025 | G69: 6 yr average x 10 snow days
A70: CABINETS & FURNITURE | B70: 0 | C70: 7500 | D70: =C70/12 -> 625 | E70: =F70/9*12 -> 0 | F70: 0 | G70: NEW - 5 units at $1500 ea ($7500)
A71: SECURITY | B71: 0 | C71: 0 | D71: 0 | E71: 0 | F71: 0
A72: TOTAL MAINTENANCE | B72: =SUM(B60:B71) -> 75410 | C72: =SUM(C60:C71) -> 67730 | D72: =SUM(D60:D71) -> 5644.166667 | E72: 90172.78667 | F72: 67629.59
A74: GENERAL
A75: PAYROLL TAXES | B75: 1900 | C75: 1640 | D75: =C75/12 -> 136.6666667 | E75: =F75/9*12 -> 1918.746667 | F75: 1439.06 | G75: 7.65% of Payroll
A76: PROP & LIAB. INSURANCE | B76: 9200 | C76: 10690 | D76: 890.8333333 | E76: 10331 | F76: 10331.3 | G76: 3.5% for General Liability No Increase in Property Liability
A77: EMPLOYEE BENEFITS | B77: 7430 | C77: 6410 | D77: 534.1666667 | E77: 5946.106667 | F77: 4459.58 | G77: 30.% of payroll - Health, Dental, CCOERA
A78: WORKMAN'S COMPENSATION | B78: 740 | C78: 640 | D78: 53.33333333 | E78: 793.9866667 | F78: 595.49 | G78: 3.% of payroll
A79: EMPLOYEE COMPENSATION | B79: 740 | C79: 640 | D79: 53.33333333 | E79: 0 | F79: 0 | G79: 3.% of payroll
A80: BAD DEBT LOSS | B80: 500 | C80: 600 | D80: 50 | E80: 600 | F80: 0 | G80: estimate write off scheduled for Dec 2016
A81: LOSS ON DISPOSAL FIXED ASSETS | B81: 500 | C81: 1050 | D81: 87.5 | E81: 1013.413333 | F81: 760.06 | G81: estimate
A82: DEPRECIATION | B82: 67000 | C82: 64800 | D82: 5400 | E82: 65050 | F82: 48750.57
A84: TOTAL GENERAL EXPENSE | B84: =SUM(B75:B82) -> 88010 | C84: =SUM(C75:C82) -> 86470 | D84: 7205.833333 | E84: 85653.25333 | F84: 66336.06
A86: FINANCING
A87: INT ON MORTGAGE PAYABLE | B87: 16430 | C87: 10860 | D87: =C87/12 -> 905 | E87: 35590 | F87: 14069.83 | G87: Amortization Schedule
A88: MORTGAGE | B88: 113630 | C88: 119200 | D88: =C88/12 -> 9933.333333 | E88: 94470 | F88: 94309.67
A89: TOTAL FINANCING | B89: =SUM(B87:B88) -> 130060 | C89: =SUM(C87:C88) -> 130060 | D89: =SUM(D87:D88) -> 10838.33333 | E89: =SUM(E87:E88) -> 130060 | F89: =SUM(F87:F88) -> 108379.5
A91: RESERVES
A92: REPLACEMENT RESERVES | B92: 3600 | C92: 4800 | D92: =C92/12 -> 400 | E92: =F92/9*12 -> 3600 | F92: 2700 | G92: Increase due to age of building
A93: TOTAL RESERVES | B93: =B92 -> 3600 | C93: =C92 -> 4800 | D93: =D92 -> 400 | E93: =E92 -> 3600 | F93: =F92 -> 2700
A95: CAPITAL EXPENDITURES
A96: LAND & IMPROVEMENTS | B96: 0 | C96: 0 | D96: =C96/12 -> 0 | E96: 0 | F96: 0
A97: BUILDING | B97: 0 | C97: 0 | D97: 0 | E97: 0 | F97: 0
A98: BUILDING IMPROVEMENTS | B98: 14500 | C98: 0 | D98: =C98/12 -> 0 | E98: 0 | F98: 17774
A99: BUILDING EQUIP. FIXED | B99: 8200 | C99: 31500 | D99: 2625 | E99: 5380 | F99: 9172 | G99: Furnaces-3 @ $2500ea($7500) Rooftop AC units $24,000.
A100: BLDG. EQUIP. PORTABLE | B100: 0 | C100: 0 | D100: 0 | E100: 1800 | F100: 0
A101: FURNISHINGS | B101: 0 | C101: 0 | D101: 0 | E101: =F101/9 -> 0 | F101: 0
A102: MISC. FIXED ASSETS | B102: 0 | C102: 0 | D102: 0 | E102: 0 | F102: 0
A103: TOTAL CAPITAL EXP. | B103: =SUM(B96:B102) -> 22700 | C103: =SUM(C96:C102) -> 31500 | D103: =SUM(D96:D102) -> 2625 | E103: =SUM(E96:E102) -> 7180 | F103: =SUM(F96:F102) -> 26946
A105: TOTAL EXPENDITURES | B105: =SUM(B103+B93+B89+B84+B72+B57+B50) -> 373010 | C105: =SUM(C103+C93+C89+C84+C72+C57+C50) -> 373420.3476 | D105: =SUM(D103+D93+D89+D84+D72+D57+D50) -> 31118.3623 | E105: =SUM(E103+E93+E89+E84+E72+E57+E50) -> 366939.64 | F105: =SUM(F103+F93+F89+F84+F72+F57+F50) -> 311419.1
A107: NET INCOME (LOSS) | B107: =SUM(B22-B105) -> -73400 | C107: =SUM(C22-C105) -> -52579.3476 | D107: =SUM(D22-D105) -> -4381.6123 | E107: =SUM(E22-E105) -> -66493.96 | F107: =SUM(F22-F105) -> -86928.59
A109: DEPRECIATION INCLUDED ABOVE | B109: =B82 -> 67000 | C109: =C82 -> 64800 | D109: =D82 -> 5400 | E109: =E82 -> 65050 | F109: =F82 -> 48750.57
A111: NET INCOME(LOSS) AFTER DEPRECIATION | B111: =B107+B109 -> -6400 | C111: =C107+C109 -> 12220.6524 | D111: 1018.3877 | E111: -1443.96 | F111: -38178.02

Sheet west 46
B4: JEFFCO HOUSING CORPORATION
B5: WEST 46th
B6: FY 2016 OPERATING BUDGET
G7: On 9/30/2016 Replacement Reserves $47,460.95
F8: Actual | G8: 8 Units - 4 Apts. & 4 Townhouses
B9: Budget | C9: Budget | D9: Budget | F9: YTD | G9: 3% increase over 12/31/2016 potential estimate
B10: FY 2016 | C10: FY 2017 | D10: FY 2017 | E10: FY 2016 | F10: FY 2016 | G10: unless otherwise noted
B11: ANNUAL | C11: ANNUAL | D11: Monthly | E11: 12MO Estimate | F11: at 9/30/16 | G11: Mortgage Ends June 2021
A12: OPERATING RECEIPTS
A13: RENTAL INCOME | B13: 64320 | C13: 70760 | D13: =C13/12 -> 5896.666667 | E13: 64690 | F13: 48505 | G13: proposed increases (aprox. 9.25% )
A15: VACANCIES | B15: -1290 | C15: -1420 | D15: -118.3333333 | E15: =F15/9*12 -> -289.3333333 | F15: -217 | G15: 2% of Rental Income
A16: TRANSFER FROM RESERVES | B16: 15000 | C16: 3700 | D16: 308.3333333 | E16: 0 | F16: 0 | G16: Transfer for Mailboxes $1200. & Water Heater $2480.
A17: INTEREST INCOME | B17: 20 | C17: 10 | D17: 0.8333333333 | E17: 10.44 | F17: 7.83 | G17: Interest from shared reserve account shared with WRP
A18: LAUNDRY INCOME | B18: 1000 | C18: 660 | D18: 55 | E18: 641.3333333 | F18: 481
A19: NSF / LATE CHARGES | B19: 60 | C19: 60 | D19: 5 | E19: 57.33333333 | F19: 43
A20: OTHER INCOME | B20: 570 | C20: 100 | D20: 8.333333333 | E20: 154.5733333 | F20: 115.93 | G20: Estimate
A22: TOTAL OPERATING RECEIPTS | B22: =SUM(B13:B21) -> 79680 | C22: =SUM(C13:C21) -> 73870 | D22: =SUM(D13:D21) -> 6155.833333 | E22: 65264.34667 | F22: 48935.76
A24: OPERATING EXPENDITURES
A25: ADMINISTRATIVE | B25: =B50 -> 5850 | C25: =C50 -> 5710 | D25: =D50 -> 475.8333333 | E25: =E50 -> 4743.813333 | F25: =F50 -> 3557.86
A26: OPERATING | B26: =B57 -> 4520 | C26: =C57 -> 6030 | D26: =D57 -> 502.5 | E26: =E57 -> 5646.146667 | F26: =F57 -> 4594.61
A27: MAINTENANCE | B27: =B72 -> 28810 | C27: =C72 -> 25760 | D27: =D72 -> 2146.666667 | E27: =E72 -> 17593.74667 | F27: =F72 -> 13195.31
A28: GENERAL | B28: =B84 -> 24770 | C28: =C84 -> 24250 | D28: =D84 -> 2020.833333 | E28: =E84 -> 23466.86667 | F28: =F84 -> 19454.14
A29: FINANCING | B29: =B89 -> 32580 | C29: =C89 -> 32580 | D29: =D89 -> 2715 | E29: =E89 -> 32580 | F29: =F89 -> 27150.2
A30: RESERVES | B30: =B93 -> 5400 | C30: =C93 -> 5400 | D30: =D93 -> 450 | E30: =E93 -> 5400 | F30: =F93 -> 4050
A31: CAPITAL EXPENSE | B31: =B103 -> 2480 | C31: =C103 -> 2480 | D31: =D103 -> 206.6666667 | E31: =E103 -> 2480 | F31: =F103 -> 2050
A32: TOTAL OPERATING EXPENSE | B32: =SUM(B25:B31) -> 104410 | C32: =SUM(C25:C31) -> 102210 | D32: =SUM(D25:D31) -> 8517.5 | E32: =SUM(E25:E31) -> 91910.57333 | F32: =SUM(F25:F31) -> 74052.12
A33: NET INCOME (LOSS) | B33: =SUM(B22-B32) -> -24730 | C33: =SUM(C22-C32) -> -28340 | D33: =SUM(D22-D32) -> -2361.666667 | E33: =SUM(E22-E32) -> -26646.22667 | F33: =SUM(F22-F32) -> -25116.36
A36: ADMINISTRATIVE EXPENDITURES
A37: OFFICE SALARIES | B37: 0 | C37: =E37+E37*3% -> 0 | D37: 0 | E37: 0 | F37: 0
C38: 0
C39: 0
A40: OFFICE SUPPLIES & POSTAGE | B40: 120 | C40: 140 | D40: =C40/12 -> 11.66666667 | E40: =F40/9*12 -> 133.3333333 | F40: 100
A41: DUES & MTG EXPENSE | B41: 30 | C41: 30 | D41: =C41/12 -> 2.5 | E41: =F41/9*12 -> 25.77333333 | F41: 19.33
A42: CLIENT VERIFICATION SERV. | B42: 0 | C42: 50 | D42: 4.166666667 | E42: 0 | F42: 0 | G42: Estimate
A43: MANAGEMENT FEE | B43: 3230 | C43: 3510 | D43: 292.5 | E43: 3261.866667 | F43: 2446.4 | G43: Based on 5% of total income minus interest & transfer from reserves
A44: LEGAL | B44: 420 | C44: 430 | D44: 35.83333333 | E44: 0 | F44: 0 | G44: One legal $245 + $50 & one sheriff fee $135
A45: ACCOUNTING/AUDIT | B45: 950 | C45: 930 | D45: 77.5 | E45: 840 | F45: 630
A46: TELEPHONE | B46: 120 | C46: 200 | D46: 16.66666667 | E46: 147.0533333 | F46: 110.29 | G46: increase for tablets
A47: COMPUTER EXPENSE | B47: 560 | C47: 50 | D47: 4.166666667 | E47: 35.33333333 | F47: 26.5
A48: MISC. ADMIN. EXPENSE | B48: 70 | C48: 70 | D48: 5.833333333 | E48: 7.32 | F48: 5.49 | G48: Estimate
A49: TRAVEL & TRAINING | B49: 350 | C49: 300 | D49: 25 | E49: 293.1333333 | F49: 219.85
A50: TOTAL ADMINISTRATIVE | B50: =SUM(B37:B49) -> 5850 | C50: =SUM(C37:C49) -> 5710 | D50: =SUM(D37:D49) -> 475.8333333 | E50: 4743.813333 | F50: 3557.86
A52: OPERATING EXPENDITURES
A53: ELECTRIC | B53: 680 | C53: 900 | D53: =C53/12 -> 75 | E53: =F53/9*12 -> 829.8533333 | F53: 622.39 | G53: Increase for Laundry room/common area lights)
A54: WATER | B54: 2320 | C54: 3200 | D54: 266.6666667 | E54: 2964.626667 | F54: 2223.47 | G54: 8%
A55: GAS | B55: 120 | C55: 420 | D55: 35 | E55: 411.6666667 | F55: 308.75 | G55: 4% Estimate for Vacancy
A56: SEWER | B56: 1400 | C56: 1510 | D56: 125.8333333 | E56: 1440 | F56: 1440 | G56: 5% - Semi Annual
A57: TOTAL OPERATING | B57: =SUM(B53:B56) -> 4520 | C57: =SUM(C53:C56) -> 6030 | D57: =SUM(D53:D56) -> 502.5 | E57: =SUM(E53:E56) -> 5646.146667 | F57: =SUM(F53:F56) -> 4594.61
A59: MAINTENANCE EXPENDITURES
A60: JANITORIAL CONTRACT | B60: 450 | C60: 100 | D60: =C60/12 -> 8.333333333 | E60: =F60/9*12 -> 60 | F60: 45 | G60: Estimate one carpet cleaning
A61: EXTERMINATING CONTRACT | B61: 1900 | C61: 1390 | D61: 115.8333333 | E61: 660 | F61: 495 | G61: Contract $99 mo $1188. year plus $200 for extra services.
A62: TRASH REMOVAL | B62: 900 | C62: 940 | D62: 78.33333333 | E62: 902.28 | F62: 676.71 | G62: 4% & Contract $75.19.month($902.28.yr)
A63: GROUNDS CONTRACT | B63: 2620 | C63: 2320 | D63: 193.3333333 | E63: 2226.666667 | F63: 1670 | G63: 3% & $65wk Apl-Oct(30wks=$1950.)+ 300 cleanup & sprinklers
A64: REPAIR MATERIALS | B64: 3990 | C64: 4340 | D64: 361.6666667 | E64: 2464.8 | F64: 1848.6 | G64: 3% + Mailboxes $1200.00 + Tub surrounds $600. minus laundry room buildout 2016
A65: REPAIR CONTRACT | B65: 8190 | C65: 4750 | D65: 395.8333333 | E65: 4610.666667 | F65: 3458 | G65: 3% minus sewer work completed 2016.
A66: CARPET & VINYL/PLANK | B66: 1800 | C66: 1800 | D66: 150 | E66: 0 | F66: 0 | G66: 1 unit carpet / vinyl
A67: APPLIANCES | B67: 2090 | C67: 3600 | D67: 300 | E67: 638.6666667 | F67: 479 | G67: 2 Refrigerator $570ea & 2 Stoves $460ea & 4 DWs $385 ea
A68: REPAIR PAYROLL | B68: 5140 | C68: 4880 | D68: 406.6666667 | E68: 4730.666667 | F68: 3548
A69: SNOW REMOVAL | B69: 1730 | C69: 1640 | D69: 136.6666667 | E69: 1300 | F69: 975 | G69: 6 yr average x 10 snow days
A70: CABINETS & FURNITURE | B70: 0 | C70: 0 | D70: 0 | E70: 0 | F70: 0
A71: SECURITY | B71: 0 | C71: 0 | D71: 0 | E71: 0 | F71: 0
A72: TOTAL MAINTENANCE | B72: =SUM(B60:B71) -> 28810 | C72: =SUM(C60:C71) -> 25760 | D72: =SUM(D60:D71) -> 2146.666667 | E72: 17593.74667 | F72: 13195.31
A74: GENERAL
A75: PAYROLL TAXES | B75: 390 | C75: 380 | D75: =C75/12 -> 31.66666667 | E75: =F75/9*12 -> 40 | F75: 30 | G75: 7.65% of Payroll
A76: PROP & LIAB. INSURANCE | B76: 5850 | C76: 5880 | D76: 490 | E76: 5680 | F76: 6113.99 | G76: 3.5% for General Liability No Increase in Property Liability
A77: EMPLOYEE BENEFITS | B77: 1540 | C77: 1460 | D77: 121.6666667 | E77: 124.52 | F77: 93.39 | G77: 30.% of payroll - Health, Dental, CCOERA
A78: WORKMAN'S COMPENSATION | B78: 150 | C78: 150 | D78: 12.5 | E78: 793.9866667 | F78: 595.49 | G78: 3.% of payroll
A79: EMPLOYEE COMPENSATION | B79: 150 | C79: 150 | D79: 12.5 | E79: 0 | F79: 0 | G79: 3.% of payroll
A80: BAD DEBT LOSS | B80: 600 | C80: 600 | D80: 50 | E80: 1049.546667 | F80: 787.16 | G80: estimate
A81: LOSS ON DISPOSAL FIXED ASSET | B81: 200 | C81: 200 | D81: 16.66666667 | E81: 0 | F81: 0 | G81: estimate
A82: DEPRECIATION | B82: 15890 | C82: 15430 | D82: 1285.833333 | E82: 15778.81333 | F82: 11834.11
A84: TOTAL GENERAL EXPENSE | B84: =SUM(B75:B83) -> 24770 | C84: =SUM(C75:C83) -> 24250 | D84: =SUM(D75:D83) -> 2020.833333 | E84: 23466.86667 | F84: 19454.14
A86: FINANCING
A87: INT ON MORTGAGE PAYABLE | B87: 7650 | C87: 6220 | D87: =C87/12 -> 518.3333333 | E87: 9000 | F87: 6472.32 | G87: Amortization Schedule
A88: MORTGAGE | B88: 24930 | C88: 26360 | D88: 2196.666667 | E88: 23580 | F88: 20677.88
A89: TOTAL FINANCING | B89: =SUM(B87:B88) -> 32580 | C89: =SUM(C87:C88) -> 32580 | D89: =SUM(D87:D88) -> 2715 | E89: =SUM(E87:E88) -> 32580 | F89: =SUM(F87:F88) -> 27150.2
A91: RESERVES
A92: REPLACEMENT RESERVES | B92: 5400 | C92: 5400 | D92: =C92/12 -> 450 | E92: =F92/9*12 -> 5400 | F92: 4050
A93: TOTAL RESERVES | B93: =B92 -> 5400 | C93: =C92 -> 5400 | D93: =D92 -> 450 | E93: =E92 -> 5400 | F93: =F92 -> 4050
A95: CAPITAL EXPENDITURES
A96: LAND & IMPROVEMENTS | B96: 0 | C96: 0 | D96: =C96/12 -> 0 | E96: 0 | F96: 0
A97: BUILDING | B97: 0 | C97: 0 | D97: =C97/12 -> 0 | E97: 0 | F97: 0
A98: BUILDING IMPROVEMENTS | B98: 0 | C98: 0 | D98: =C98/12 -> 0 | E98: 0 | F98: 0
A99: BUILDING EQUIP. FIXED | B99: 2480 | C99: 2480 | D99: 206.6666667 | E99: 2480 | F99: 2050 | G99: Water Heater
A100: BLDG. EQUIP. PORTABLE | B100: 0 | C100: 0 | D100: 0 | E100: 0 | F100: 0
A101: FURNISHINGS | B101: 0 | C101: 0 | D101: 0 | E101: 0 | F101: 0
A102: MISC. FIXED ASSETS | B102: 0 | C102: 0 | D102: 0 | E102: 0 | F102: 0
A103: TOTAL CAPITAL EXP. | B103: =SUM(B96:B102) -> 2480 | C103: =SUM(C96:C102) -> 2480 | D103: =SUM(D96:D102) -> 206.6666667 | E103: =SUM(E96:E102) -> 2480 | F103: =SUM(F96:F102) -> 2050
A105: TOTAL EXPENDITURES | B105: =SUM(B103+B93+B89+B84+B72+B57+B50) -> 104410 | C105: =SUM(C103+C93+C89+C84+C72+C57+C50) -> 102210 | D105: =SUM(D103+D93+D89+D84+D72+D57+D50) -> 8517.5 | E105: =SUM(E103+E93+E89+E84+E72+E57+E50) -> 91910.57333 | F105: =SUM(F103+F93+F89+F84+F72+F57+F50) -> 74052.12
A107: NET INCOME (LOSS) | B107: =SUM(B22-B105) -> -24730 | C107: =SUM(C22-C105) -> -28340 | D107: =SUM(D22-D105) -> -2361.666667 | E107: =SUM(E22-E105) -> -26646.22667 | F107: =SUM(F22-F105) -> -25116.36
A109: DEPRECIATION INCLUDED ABOVE | B109: =B82 -> 15890 | C109: =C82 -> 15430 | D109: =D82 -> 1285.833333 | E109: =E82 -> 15778.81333 | F109: =F82 -> 11834.11
A111: NET INCOME(LOSS) AFTER DEPRECIATION | B111: =B107+B109 -> -8840 | C111: =C107+C109 -> -12910 | D111: -1075.833333 | E111: -10867.41333 | F111: -13282.25

Sheet Arvada Cottages
B2: JEFFCO HOUSING CORPORATION
B3: ARVADA COTTAGES
B4: FY 2017 OPERATING BUDGET | G4: On 9/30/2016 Replacement Reserves $ 16,132.12
G5: Operating Reserves $ 21,141.56
G6: Total Together $ 37,273.68
F8: Actual | G8: 16 Homes - 15 -4bdrm & 1 - 3bdrm
B9: Budget | C9: Budget | D9: Budget | F9: YTD | G9: 3% increase over 12/31/2016 potential estimate
B10: FY 2016 | C10: FY 2017 | D10: FY 2017 | E10: FY 2016 | F10: FY 2016 | G10: unless otherwise noted
B11: ANNUAL | C11: ANNUAL | D11: Monthly | E11: 12MO Estimate | F11: at 9/30/16 | G11: Mortgage Ends October 2023
A12: OPERATING RECEIPTS
A13: RENTAL INCOME | B13: 50890 | C13: 51740 | D13: =C13/12 -> 4311.666667 | E13: =F13/9*12 -> 54530.66667 | F13: 40898 | G13: Estimated rents HUD Subsidy( Tenant 20% Chafa 80%)
A14: TENANT ASSISTANCE | B14: 203540 | C14: 206980 | D14: 17248.33333 | E14: 201253.3333 | F14: 150940
A15: VACANCIES | B15: -5090 | C15: -4080 | D15: -340 | E15: -3850.666667 | F15: -2888 | G15: based on three unit months (2% is $5174.00)
A16: TRANSFER FROM RESERVES | B16: 0 | C16: 5000 | D16: =C16/12 -> 416.6666667 | E16: 0 | F16: 0 | G16: Transfer for sprinkler system at two units
A17: INTEREST INCOME | B17: 80 | C17: 50 | D17: 4.166666667 | E17: =F17/9*12 -> 61.94666667 | F17: 46.46
A19: NSF & LATE FEES | B19: 150 | C19: 300 | D19: 25 | E19: 364 | F19: 273
A20: OTHER INCOME | B20: 1500 | C20: 1500 | D20: 125 | E20: 702.6 | F20: 526.95 | G20: Estimate CHFA adjustments and Retro Rent
A22: TOTAL OPERATING RECEIPTS | B22: =SUM(B13:B21) -> 251070 | C22: =SUM(C13:C21) -> 261490 | D22: 21790.83333 | E22: 253061.88 | F22: 189796.41
A24: OPERATING EXPENDITURES
A25: ADMINISTRATIVE | B25: =B50 -> 27230 | C25: =C50 -> 26830 | D25: =D50 -> 2235.833333 | E25: =E50 -> 24731.25333 | F25: =F50 -> 19110.19
A26: OPERATING | B26: =B57 -> 17530 | C26: =C57 -> 22799.89333 | D26: =D57 -> 1899.991111 | E26: =E57 -> 21081.15333 | F26: =F57 -> 15486.62
A27: MAINTENANCE | B27: =B72 -> 50180 | C27: =C72 -> 48380 | D27: =D72 -> 4031.666667 | E27: =E72 -> 57945.42667 | F27: =F72 -> 43459.07
A28: GENERAL | B28: =B84 -> 69700 | C28: =C84 -> 63980 | D28: =D84 -> 5331.666667 | E28: =E84 -> 61478.64 | F28: =F84 -> 47111.2
A29: FINANCING | B29: =B89 -> 142470 | C29: =C89 -> 142470 | D29: =D89 -> 11872.5 | E29: =E89 -> 142470 | F29: =F89 -> 118727.4
A30: RESERVES | B30: =B92 -> 2400 | C30: =C92 -> 4800 | D30: =D92 -> 400 | E30: =E93 -> 2400 | F30: =F93 -> 1800
A31: CAPITAL EXPENSE | B31: =B103 -> 22190 | C31: =C103 -> 5000 | D31: =D103 -> 416.6666667 | E31: =E103 -> 1372 | F31: =F103 -> 4000
A32: TOTAL OPERATING EXPENSE | B32: =SUM(B25:B31) -> 331700 | C32: =SUM(C25:C31) -> 314259.8933 | D32: =SUM(D25:D31) -> 26188.32444 | E32: =SUM(E25:E31) -> 311478.4733 | F32: =SUM(F25:F31) -> 249694.48
A33: NET INCOME (LOSS) | B33: =SUM(B22-B32) -> -80630 | C33: =SUM(C22-C32) -> -52769.89333 | D33: =SUM(D22-D32) -> -4397.491111 | E33: =SUM(E22-E32) -> -58416.59333 | F33: =SUM(F22-F32) -> -59898.07
A36: ADMINISTRATIVE EXPENDITURES
A37: OFFICE SALARIES | B37: 8320 | C37: 8220 | D37: =C37/12 -> 685 | E37: =F37/9*12 -> 7981.333333 | F37: 5986
A40: OFFICE SUPPLIES | B40: 260 | C40: 510 | D40: 42.5 | E40: 492.9866667 | F40: 369.74
A41: DUES & MTG EXPENSE | B41: 120 | C41: 150 | D41: 12.5 | E41: 142.4666667 | F41: 106.85 | G41: contains CPM dues - Mike Hunter
A42: CLIENT VERIFICATION SERVICES | B42: 1200 | C42: 210 | D42: =C42/12 -> 17.5 | E42: 200 | F42: 559.5 | G42: Estimate based on Yardi Client Verification only
A43: MANAGEMENT FEE | B43: 12500 | C43: 12820 | D43: 1068.333333 | E43: 12650 | F43: 9487.5 | G43: Based on 5% of total income minus interest
A44: LEGAL | B44: 1420 | C44: 1430 | D44: 119.1666667 | E44: 0 | F44: 0 | G44: One legal $245 + $50 & one sheriff fee $135 & Attys fees of $1000
A45: ACCOUNTING/AUDIT | B45: 1460 | C45: 1740 | D45: 145 | E45: 1687 | F45: 1417.5
A46: TELEPHONE | B46: 300 | C46: 500 | D46: 41.66666667 | E46: 367.6 | F46: 275.7 | G46: increase for tablets
A47: COMPUTER EXPENSE | B47: 560 | C47: 80 | D47: 6.666666667 | E47: 76.10666667 | F47: 57.08
A48: MISC. ADMIN. EXPENSE | B48: 380 | C48: 350 | D48: 29.16666667 | E48: 338.8666667 | F48: 254.15
A49: TRAVEL & TRAINING | B49: 710 | C49: 820 | D49: 68.33333333 | E49: 794.8933333 | F49: 596.17
A50: TOTAL ADMINISTRATIVE | B50: =SUM(B37:B49) -> 27230 | C50: =SUM(C37:C49) -> 26830 | D50: =SUM(D37:D49) -> 2235.833333 | E50: =SUM(E37:E49) -> 24731.25333 | F50: =SUM(F37:F49) -> 19110.19
A52: OPERATING EXPENDITURES
A53: ELECTRIC | B53: 4120 | C53: =E53+E53*3% -> 5649.893333 | D53: =C53/12 -> 470.8244444 | E53: =F53/9*12 -> 5485.333333 | F53: 4114 | G53: 3%
A54: WATER | B54: 6250 | C54: 9830 | D54: 819.1666667 | E54: 9099.44 | F54: 6824.58 | G54: 8% | H54: 9822.66
A55: GAS | B55: 500 | C55: 500 | D55: 41.66666667 | E55: 0 | F55: 0 | G55: 4% Estimate for vacant
A56: SEWER | B56: 6660 | C56: 6820 | D56: 568.3333333 | E56: 6496.38 | F56: 4548.04 | G56: 5%
A57: TOTAL OPERATING | B57: =SUM(B53:B56) -> 17530 | C57: =SUM(C53:C56) -> 22799.89333 | D57: =SUM(D53:D56) -> 1899.991111 | E57: =SUM(E53:E56) -> 21081.15333 | F57: =SUM(F53:F56) -> 15486.62
A59: MAINTENANCE EXPENDITURES
A60: JANITORIAL CONTRACT & SUPPLIES | B60: 1000 | C60: 300 | D60: =C60/12 -> 25 | E60: =F60/9*12 -> 306.6666667 | F60: 230 | G60: Estimate cleaning for turnover
A61: EXTERMINATING CONTRACT | B61: 4650 | C61: 4880 | D61: 406.6666667 | E61: 6553.333333 | F61: 4915 | G61: 1 BB @ $2478. & regular spraying / and treatments 2400.
A62: TRASH REMOVAL | B62: 2150 | C62: 2210 | D62: 184.1666667 | E62: 1624.626667 | F62: 1218.47 | G62: 4% Contract $177.00 month($2124.yr)
A63: GROUNDS CONTRACT | B63: 3390 | C63: 5000 | D63: 416.6666667 | E63: 13466.66667 | F63: 10100 | G63: Estimate 2016 had excessive work on bushes
A64: REPAIR MATERIALS | B64: 10780 | C64: 7400 | D64: 616.6666667 | E64: 7187.026667 | F64: 5390.27
A65: REPAIR CONTRACT COSTS | B65: 9180 | C65: 8530 | D65: 710.8333333 | E65: 8284.853333 | F65: 6213.64
A66: CARPET & VINYL/PLANK | B66: 5000 | C66: 7000 | D66: 583.3333333 | E66: 8792.653333 | F66: 6594.49 | G66: 2 units carpet & vinyl @ $3500. ea
A67: APPLIANCES | B67: 1930 | C67: 2060 | D67: 171.6666667 | E67: 1265.333333 | F67: 949 | G67: 2 Refrigerators $570. ea & 2 Ranges $460ea
A68: REPAIR PAYROLL | B68: 11360 | C68: 8800 | D68: =C68/12 -> 733.3333333 | E68: =F68/9*12 -> 8548 | F68: 6411
A69: SNOW REMOVAL | B69: 740 | C69: 200 | D69: =C69/12 -> 16.66666667 | E69: =F69/9*12 -> 0 | F69: 0 | G69: Estimate for vacant units
A70: CABINETS & FURNITURE | B70: 0 | C70: 2000 | D70: =C70/12 -> 166.6666667 | E70: =F70/9*12 -> 1916.266667 | F70: 1437.2 | G70: One unit cabinets
A71: SECURITY | B71: 0 | C71: =E71+E71*3% -> 0 | D71: 0 | E71: =F71/9*12 -> 0 | F71: 0
A72: TOTAL MAINTENANCE | B72: =SUM(B60:B71) -> 50180 | C72: =SUM(C60:C70) -> 48380 | D72: =SUM(D60:D70) -> 4031.666667 | E72: =SUM(E60:E70) -> 57945.42667 | F72: =SUM(F60:F70) -> 43459.07
A74: GENERAL
A75: PAYROLL TAXES | B75: 1510 | C75: 1300 | D75: =C75/12 -> 108.3333333 | E75: =F75/9*12 -> 1163.04 | F75: 872.28 | G75: 7.65% of Payroll
A76: PROP & LIAB. INSURANCE | B76: 8020 | C76: 5190 | D76: 432.5 | E76: 5008 | F76: 5007.98 | G76: 3.5% for General Liability No Increase in Property Liability
A77: EMPLOYEE BENEFITS | B77: 5900 | C77: 5110 | D77: 425.8333333 | E77: 3675.586667 | F77: 2756.69 | G77: 30.% of payroll - Health, Dental, CCOERA
A78: WORKMAN'S COMPENSATION | B78: 590 | C78: 510 | D78: 42.5 | E78: 793.9866667 | F78: 595.49 | G78: 3.% of payroll
A79: EMPLOYEE COMPENSATION | B79: 590 | C79: 510 | D79: 42.5 | E79: 0 | F79: 0 | G79: 3.% of payroll
A80: BAD DEBT LOSS | B80: 1000 | C80: 1000 | D80: 83.33333333 | E80: 0 | F80: 0 | G80: Estimate
A81: LOSS ON DISPOSAL FIXED ASSET | B81: 1000 | C81: 1000 | D81: 83.33333333 | E81: 1338.026667 | F81: 1003.52 | G81: Estimate
A82: DEPRECIATION | B82: 50990 | C82: 49350 | D82: =C82/12 -> 4112.5 | E82: 49500 | F82: 36875.24
A83: OTHER INTERST PAID | B83: 100 | C83: 10 | D83: =C83/12 -> 0.8333333333 | E83: =F83/9*12 -> 0 | F83: 0 | G83: Estimate 2% paid to Tenant on deposit refund at move out - per lease
A84: TOTAL GENERAL EXPENSE | B84: =SUM(B75:B83) -> 69700 | C84: =SUM(C75:C83) -> 63980 | D84: =SUM(D75:D83) -> 5331.666667 | E84: =SUM(E75:E83) -> 61478.64 | F84: =SUM(F75:F83) -> 47111.2
A86: FINANCING
A87: INT ON MORTGAGE PAYABLE | B87: 40420 | C87: 35630 | D87: =C87/12 -> 2969.166667 | E87: 45000 | F87: 34011.92 | G87: 2016 Amortization Schedule
A88: MORTGAGE | B88: 102050 | C88: 106840 | D88: =C88/12 -> 8903.333333 | E88: 97470 | F88: 84715.48
A89: TOTAL FINANCING | B89: =SUM(B87:B88) -> 142470 | C89: =SUM(C87:C88) -> 142470 | D89: =SUM(D87:D88) -> 11872.5 | E89: =SUM(E87:E88) -> 142470 | F89: =SUM(F87:F88) -> 118727.4
A91: RESERVES
A92: REPLACEMENT RESERVES | B92: 2400 | C92: 4800 | D92: =C92/12 -> 400 | E92: =F92/9*12 -> 2400 | F92: 1800 | G92: Increase due to age of building
A93: TOTAL RESERVES | B93: =B92 -> 2400 | C93: =C92 -> 4800 | D93: =D92 -> 400 | E93: =E92 -> 2400 | F93: =F92 -> 1800
A95: CAPITAL EXPENDITURES
A96: LAND & IMPROVEMENTS | B96: 15000 | C96: 5000 | D96: =C96/12 -> 416.6666667 | E96: 0 | F96: 0 | G96: 2 units Sprinkler Systems @ $2,500 each (lowered from 2016 budget)
A97: BUILDING | B97: 0 | C97: 0 | D97: 0 | E97: 0 | F97: 0
A98: BUILDING IMPROVEMENTS | B98: 0 | C98: 0 | D98: 0 | E98: 0 | F98: 0
A99: BLDG. EQUIP. FIXED | B99: 7190 | C99: 0 | D99: 0 | E99: 1372 | F99: 4000
A100: BLDG. EQUIP. PORTABLE | B100: 0 | C100: 0 | D100: 0 | E100: =F100/9*12 -> 0 | F100: 0
A101: FURNISHINGS | B101: 0 | C101: 0 | D101: 0 | E101: 0 | F101: 0
A102: MISC. FIXED ASSETS | B102: 0 | C102: 0 | D102: 0 | E102: =F102/9 -> 0 | F102: 0
A103: TOTAL CAPITAL EXP. | B103: =SUM(B96:B102) -> 22190 | C103: =SUM(C96:C102) -> 5000 | D103: =SUM(D96:D102) -> 416.6666667 | E103: =SUM(E96:E102) -> 1372 | F103: =SUM(F96:F102) -> 4000
A105: TOTAL EXPENDITURES | B105: =SUM(B103+B93+B89+B84+B72+B57+B50) -> 331700 | C105: =SUM(C103+C93+C89+C84+C72+C57+C50) -> 314259.8933 | D105: =SUM(D103+D93+D89+D84+D72+D57+D50) -> 26188.32444 | E105: =SUM(E103+E93+E89+E84+E72+E57+E50) -> 311478.4733 | F105: =SUM(F103+F93+F89+F84+F72+F57+F50) -> 249694.48
A107: NET INCOME (LOSS) | B107: =SUM(B22-B105) -> -80630 | C107: =SUM(C22-C105) -> -52769.89333 | D107: =SUM(D22-D105) -> -4397.491111 | E107: =SUM(E22-E105) -> -58416.59333 | F107: =SUM(F22-F105) -> -59898.07
A109: DEPRECIATION INCLUDED ABOVE | B109: =B82 -> 50990 | C109: =C82 -> 49350 | D109: =D82 -> 4112.5 | E109: =E82 -> 49500 | F109: =F82 -> 36875.24
A111: NET INCOME(LOSS) AFTER DEPRECIATION | B111: =B107+B109 -> -29640 | C111: =C107+C109 -> -3419.893333 | D111: -284.9911111 | E111: -8916.593333 | F111: -23022.83

Sheet Allison Village
B4: JEFFCO HOUSING CORPORATION
B5: ALLISON VILLAGE
B6: FY 2017 OPERATING BUDGET
G7: On 9/30/2016 Replacement Reserves $71,401.36
F8: Actual | G8: 37 Units
B9: Budget | C9: Budget | D9: Budget | F9: YTD | G9: 3% increase over 12/31/2016 potential estimate
B10: FY 2016 | C10: FY 2017 | D10: FY 2017 | E10: FY 2016 | F10: FY 2016 | G10: unless otherwise noted
B11: ANNUAL | C11: ANNUAL | D11: Monthly | E11: 12MO Estimate | F11: at 9/30/16 | G11: Mortgage Ends October 2031
A12: OPERATING RECEIPTS
A13: RENTAL INCOME | B13: 113390 | C13: 116330 | D13: =C13/12 -> 9694.166667 | E13: =F13/9*12 -> 139598.6667 | F13: 104699 | G13: Rents based on current & new contracts effective 5/1/17 (HUD Subsidy- Tenant 33% Chafa 67%)
A14: TENANT ASSISTANCE PAYMENTS | B14: 230210 | C14: 236178 | D14: =C14/12 -> 19681.5 | E14: 207464 | F14: 155598
A15: LESS: VACANCIES | B15: -6870 | C15: -3570 | D15: =C15/12 -> -297.5 | E15: -1896.666667 | F15: -1422.5 | G15: Two unit months 2bdrm & Two unit months 2bdrm
A16: TRANSFER FROM RESERVES | B16: 10000 | C16: 10000 | D16: =C16/12 -> 833.3333333 | E16: 0 | F16: 0 | G16: Transfer for Concrete Work $3500. Carpet/Vinyl $3300.00 Cabinets $3000.
A17: INTEREST INCOME | B17: 100 | C17: 100 | D17: =C17/12 -> 8.333333333 | E17: 89.93333333 | F17: 67.45
A18: LAUNDRY / VENDING REVENUE | B18: 3500 | C18: 3500 | D18: =C18/12 -> 291.6666667 | E18: =F18/9*12 -> 4842.76 | F18: 3632.07
A19: NSF & LATE CHARGES | B19: 890 | C19: 890 | D19: =C19/12 -> 74.16666667 | E19: =F19/9*12 -> 696 | F19: 522
A20: OTHER INCOME | B20: 2000 | C20: 2000 | D20: =C20/12 -> 166.6666667 | E20: 6000 | F20: 1545.66 | G20: Estimate Retro Rent / CHFA adjs
A22: TOTAL OPERATING RECEIPTS | B22: =SUM(B13:B20) -> 353220 | C22: =SUM(C13:C20) -> 365428 | D22: =SUM(D13:D20) -> 30452.33333 | E22: =SUM(E13:E20) -> 356794.6933 | F22: =SUM(F13:F20) -> 264641.68
A24: OPERATING EXPENDITURES
A25: ADMINISTRATIVE | B25: =B50 -> 61270 | C25: =C50 -> 61090 | D25: =D50 -> 5090.833333 | E25: =E50 -> 59317.30667 | F25: =F50 -> 45884.68
A26: OPERATING | B26: =B57 -> 40770 | C26: =C57 -> 42690.1764 | D26: =D57 -> 3557.5147 | E26: =E57 -> 42324.62667 | F26: =F57 -> 30834.39
A27: MAINTENANCE | B27: =B72 -> 86450 | C27: =C72 -> 88880 | D27: =D72 -> 8601.666667 | E27: =E72 -> 72313.34667 | F27: =F72 -> 54235.01
A28: GENERAL | B28: =B84 -> 96530 | C28: =C84 -> 99129.525 | D28: =D84 -> 8260.79375 | E28: =E84 -> 91679.45333 | F28: =F84 -> 72121.24
A29: FINANCING | B29: =B89 -> 123770 | C29: =C89 -> 123770 | D29: =D89 -> 10314.16667 | E29: =E89 -> 123770 | F29: =F89 -> 103135
A30: RESERVES | B30: =B93 -> 15600 | C30: =C93 -> 15600 | D30: =D93 -> 1300 | E30: =E93 -> 15600 | F30: =F93 -> 11700
A31: CAPITAL EXPENSE | B31: =B103 -> 5500 | C31: =C103 -> 0 | D31: =D103 -> 0 | E31: =E103 -> 6618 | F31: =F103 -> 6617.85
A32: TOTAL OPERATING EXPENSE | B32: =SUM(B25:B31) -> 429890 | C32: =SUM(C25:C31) -> 431159.7014 | D32: =SUM(D25:D31) -> 37124.97512 | E32: =SUM(E25:E31) -> 411622.7333 | F32: =SUM(F25:F31) -> 324528.17
A33: NET INCOME (LOSS) | B33: =SUM(B22-B32) -> -76670 | C33: =SUM(C22-C32) -> -65731.7014 | D33: =SUM(D22-D32) -> -6672.641783 | E33: =SUM(E22-E32) -> -54828.04 | F33: =SUM(F22-F32) -> -59886.49
A36: ADMINISTRATIVE EXPENDITURES
A37: OFFICE SALARIES | B37: 30440 | C37: 30580 | D37: =C37/12 -> 2548.333333 | E37: =F37/9*12 -> 29688 | F37: 22266
E38: 0
E39: 0
A40: OFFICE SUPPLIES | B40: 730 | C40: 1000 | D40: 83.33333333 | E40: 1650.906667 | F40: 1238.18 | G40: Estimate 2016 High due to waiting list mailing
A41: DUES & MTG EXPENSE | B41: 290 | C41: 570 | D41: 47.5 | E41: 554.0266667 | F41: 415.52 | G41: REACH membership & corp board meeting & CPM dues-Mike Hunter
A42: CLIENT VERIFICATION SERVICES | B42: 2330 | C42: 210 | D42: 17.5 | E42: 200 | F42: 1213.7 | G42: Estimate based on Yardi Client Verification only
A43: MANAGEMENT FEE | B43: 17160 | C43: 17770 | D43: 1480.833333 | E43: 17638.33333 | F43: 13228.75 | G43: Based on 5% of estimated 2015 total income minus interest
A44: LEGAL | B44: 420 | C44: 430 | D44: 35.83333333 | E44: 0 | F44: 0 | G44: One legal $245 + $50 & one sheriff fee $135
A45: ACCOUNTING/AUDIT | B45: 3220 | C45: 3230 | D45: 269.1666667 | E45: 3131 | F45: 2681.25
A46: TELEPHONE | B46: 3340 | C46: 4000 | D46: 333.3333333 | E46: 3254.28 | F46: 2440.71 | G46: increase for tablets
A47: COMPUTER EXPENSE | B47: 1680 | C47: 130 | D47: 10.83333333 | E47: 125.04 | F47: 93.78
A48: MISC ADMIN | B48: 420 | C48: 1030 | D48: 85.83333333 | E48: 999.1466667 | F48: 749.36
A49: TRAVEL & TRAINING | B49: 1240 | C49: 2140 | D49: 178.3333333 | E49: 2076.573333 | F49: 1557.43
A50: TOTAL ADMINISTRATIVE | B50: =SUM(B37:B49) -> 61270 | C50: 61090 | D50: 5090.833333 | E50: =SUM(E37:E49) -> 59317.30667 | F50: =SUM(F37:F49) -> 45884.68
A52: OPERATING EXPENDITURES
A53: ELECTRICITY | B53: 19360 | C53: =E53+E53*3% -> 18550.1764 | D53: =C53/12 -> 1545.848033 | E53: =F53/9*12 -> 18009.88 | F53: 13507.41 | G53: 3%
A54: WATER | B54: 8200 | C54: 11790 | D54: 982.5 | E54: 10920 | F54: 7280.92 | G54: 8%
A55: GAS | B55: 7450 | C55: 6170 | D55: 514.1666667 | E55: 5927.013333 | F55: 4445.26 | G55: 4%
A56: SEWER | B56: 5760 | C56: 6180 | D56: 515 | E56: 7467.733333 | F56: 5600.8 | G56: 5% Clear Crk-Sewer-Semi Annual($5020.yr) Arvada-Wastewtr- Bi Monthly $860.yr)
A57: TOTAL OPERATING | B57: =SUM(B53:B56) -> 40770 | C57: =SUM(C53:C56) -> 42690.1764 | D57: =SUM(D53:D56) -> 3557.5147 | E57: =SUM(E53:E56) -> 42324.62667 | F57: =SUM(F53:F56) -> 30834.39
A59: MAINTENANCE EXPENDITURES
A60: JANITORIAL CONTRACT & SUPPLIES | B60: 2580 | C60: 2500 | D60: =C60/12 -> 208.3333333 | E60: =F60/9*12 -> 2313.333333 | F60: 1735 | G60: 3% + Laundry $40wk($2080.yr) & $420. for turnovers
A61: EXTERMINATION | B61: 2000 | C61: 2000 | D61: 166.6666667 | E61: 264 | F61: 198 | G61: Estimate for general treatment $2000
A62: TRASH REMOVAL | B62: 2660 | C62: 2750 | D62: 229.1666667 | E62: 2604.4 | F62: 1953.3 | G62: 4% Increase + Contract $211.70 month($2540.yr) plus $100 extra for additional pickups
A63: GROUNDS CONTRACT | B63: 8100 | C63: 8990 | D63: 749.1666667 | E63: 7665.546667 | F63: 5749.16 | G63: 3% & Contract $160. wk x 30wks $4800. & $1000.Sprinklers & $500.landscape & $2500 Tree Trim
A64: REPAIR MATERIALS | B64: 14500 | C64: 13320 | D64: 1110 | E64: 12933.33333 | F64: 9700 | G64: 3.% minus $500. for shed buildout.
A65: REPAIR CONTRACT | B65: 15130 | C65: 14450 | D65: 1204.166667 | E65: 10532.66667 | F65: 7899.5 | G65: 3% Boiler cleaning $1000. & Concrete work on sidewalks $3,500 minus $1000 shed build out
A66: CARPET & VINYL/PLANK | B66: 4500 | C66: 3300 | D66: 1470 | E66: 1773.146667 | F66: 1329.86 | G66: 3% 3 Units Carpet/Vinyl @ $1,100. ea
A67: APPLIANCES | B67: 1470 | C67: 2060 | D67: 171.6666667 | E67: 1974.666667 | F67: 1481 | G67: 2 Refrigerators @$570.ea & 2 Stoves @ $460
A68: REPAIR PAYROLL | B68: 22430 | C68: 23900 | D68: =C68/12 -> 1991.666667 | E68: 23206.66667 | F68: 17405
A69: SNOW REMOVAL | B69: 6700 | C69: 6280 | D69: =C69/12 -> 523.3333333 | E69: 2906.666667 | F69: 2180 | G69: 6 yr average x 10 snow days
A70: CABINETS & FURNITURE | B70: 0 | C70: 3000 | D70: =C70/12 -> 250 | E70: 0 | F70: 0 | G70: 2 Units Cabinets @$1,500 ea
A71: SECURITY CONTRACT | B71: 6380 | C71: 6330 | D71: =C71/12 -> 527.5 | E71: 6138.92 | F71: 4604.19
A72: TOTAL MAINTENANCE | B72: =SUM(B60:B71) -> 86450 | C72: =SUM(C60:C71) -> 88880 | D72: =SUM(D60:D71) -> 8601.666667 | E72: 72313.34667 | F72: 54235.01
A74: GENERAL
A75: PAYROLL TAXES | B75: 4050 | C75: 4170 | D75: =C75/12 -> 347.5 | E75: =F75/9*12 -> 4012.24 | F75: 3009.18 | G75: 7.65% of Payroll
A76: PROP & LIAB. INSURANCE | B76: 10710 | C76: =E76+E76*3.5% -> 12849.525 | D76: 1070.79375 | E76: 12415 | F76: 12414.72 | G76: 3.5% for General Liability No Increase in Property Liability
A77: EMPLOYEE BENEFITS | B77: 15860 | C77: 16340 | D77: 1361.666667 | E77: 12452.69333 | F77: 9339.52 | G77: 30.% of payroll - Health, Dental, CCOERA
A78: WORKMEN'S COMPENSATION | B78: 1590 | C78: 1630 | D78: 135.8333333 | E78: 2383.293333 | F78: 1787.47 | G78: 3.% of payroll
A79: EMPLOYEE COMPENSATION | B79: 1590 | C79: 1630 | D79: 135.8333333 | E79: 0 | F79: 0 | G79: 3.% of payroll
A80: BAD DEBT LOSS | B80: 2000 | C80: 500 | D80: 41.66666667 | E80: 484.9466667 | F80: 363.71 | G80: Estimate
A81: LOSS ON DISPOSAL FIXED ASSETS | B81: 230 | C81: 500 | D81: 41.66666667 | E81: 211.28 | F81: 158.46 | G81: Estimate
A82: DEPRECIATION EXPENSE | B82: 60500 | C82: 61500 | D82: 5125 | E82: 59720 | F82: 45048.18
A83: OTHER INTERST PAID | B83: 0 | C83: 10 | D83: 0.8333333333 | E83: =F83/9*12 -> 0 | F83: 0 | G83: Estimate 2% paid to Tenant on deposit refund at move out - per lease
A84: TOTAL GENERAL EXPENSE | B84: =SUM(B75:B83) -> 96530 | C84: =SUM(C75:C83) -> 99129.525 | D84: =SUM(D75:D83) -> 8260.79375 | E84: 91679.45333 | F84: 72121.24
A86: FINANCING
A87: MORTGAGE INTEREST | B87: 67070 | C87: 63940 | D87: =C87/12 -> 5328.333333 | E87: 69680 | F87: 56089.44 | G87: 2016 Amortization Schedule
A88: MORTGAGE PRINCIPAL | B88: 56700 | C88: 59830 | D88: 4985.833333 | E88: 54090 | F88: 47045.56
A89: TOTAL FINANCING | B89: =SUM(B87:B88) -> 123770 | C89: =SUM(C87:C88) -> 123770 | D89: =SUM(D87:D88) -> 10314.16667 | E89: =SUM(E87:E88) -> 123770 | F89: =SUM(F87:F88) -> 103135
A91: RESERVES
A92: REPLACEMENT RESERVES | B92: 15600 | C92: 15600 | D92: =C92/12 -> 1300 | E92: =F92/9*12 -> 15600 | F92: 11700
A93: TOTAL RESERVES | B93: =B92 -> 15600 | C93: =C92 -> 15600 | D93: =SUM(D92) -> 1300 | E93: =E92 -> 15600 | F93: =F92 -> 11700
A95: CAPITAL EXPENDITURES
A96: LAND & IMPROVEMENTS | B96: 0 | C96: 0 | D96: =C96/12 -> 0 | E96: 0 | F96: 0
A97: BUILDING | B97: 0 | C97: 0 | D97: 0 | E97: 0 | F97: 0
A98: BUILDING IMPROVEMENTS | B98: 0 | C98: 0 | D98: =C98/12 -> 0 | E98: 0 | F98: 0
A99: BLDG. EQUIP. FIXED | B99: 3000 | C99: 0 | D99: 0 | E99: 0 | F99: 0
A100: BLDG. EQUIP. PORTABLE | B100: 0 | C100: 0 | D100: 0 | E100: =F100/9 -> 0 | F100: 0
A101: FURNISHINGS | B101: 0 | C101: 0 | D101: 0 | E101: 0 | F101: 0
A102: MISC. FIXED ASSETS | B102: 2500 | C102: 0 | D102: 0 | E102: 6618 | F102: 6617.85
A103: TOTAL CAPITAL EXP. | B103: =SUM(B96:B102) -> 5500 | C103: =SUM(C96:C102) -> 0 | D103: =SUM(D96:D102) -> 0 | E103: =SUM(E96:E102) -> 6618 | F103: =SUM(F96:F102) -> 6617.85
A105: TOTAL EXPENDITURES | B105: =SUM(B103+B93+B89+B84+B72+B57+B50) -> 429890 | C105: =SUM(C103+C93+C89+C84+C72+C57+C50) -> 431159.7014 | D105: =SUM(D103+D93+D89+D84+D72+D57+D50) -> 37124.97512 | E105: =SUM(E103+E93+E89+E84+E72+E57+E50) -> 411622.7333 | F105: =SUM(F103+F93+F89+F84+F72+F57+F50) -> 324528.17
A107: NET INCOME (LOSS) | B107: =SUM(B22-B105) -> -76670 | C107: =SUM(C22-C105) -> -65731.7014 | D107: =SUM(D22-D105) -> -6672.641783 | E107: =SUM(E22-E105) -> -54828.04 | F107: =SUM(F22-F105) -> -59886.49
A109: DEPRECIATION INCLUDED ABOVE | B109: =B82 -> 60500 | C109: =C82 -> 61500 | D109: =D82 -> 5125 | E109: =E82 -> 59720 | F109: =F82 -> 45048.18
A111: NET INCOME(LOSS) AFTER DEPRECIATION | B111: =B107+B109 -> -16170 | C111: =C107+C109 -> -4231.7014 | D111: -1547.641783 | E111: 4891.96 | F111: -14838.31

Sheet Sheet1
